Workbook

Sheet 菜单

Sheet 商品信息
A1: 商品信息
A2: 货品编码 | B2: 货品名称 | C2: 规格型号 | D2: 单位 | E2: 进货单价 | F2: 供应商
A3: BM001 | B3: HPMC-001 | C3: GGXH-001 | D3: 件 | E3: 16 | F3: 深圳鸿达科技有限公司
A4: BM002 | B4: HPMC-002 | C4: GGXH-002 | D4: 件 | E4: 25 | F4: 广州鸿达科技有限公司
A5: BM003 | B5: HPMC-003 | C5: GGXH-003 | D5: 件 | E5: 36 | F5: 上海鸿达科技有限公司
A6: BM004 | B6: HPMC-004 | C6: GGXH-004 | D6: 件 | E6: 19 | F6: 北京鸿达科技有限公司
A7: BM005 | B7: HPMC-005 | C7: GGXH-005 | D7: 件 | E7: 29 | F7: 厦门鸿达科技有限公司
A8: BM006 | B8: HPMC-006 | C8: GGXH-006 | D8: 件 | E8: 37 | F8: 珠海鸿达科技有限公司
A9: BM007 | B9: HPMC-007 | C9: GGXH-007 | D9: 件 | E9: 30 | F9: 佛山鸿达科技有限公司

Sheet 供应商信息
A1: 供应商信息
A2: 货品编码 | B2: 货品名称 | C2: 规格型号 | D2: 单位 | E2: 进货单价 | F2: 供应商 | G2: 供应商联系人 | H2: 联系人电话 | I2: 地址
A3: BM001 | B3: HPMC-001 | C3: GGXH-001 | D3: 个 | E3: 16 | F3: 深圳鸿达科技有限公司 | G3: 张三 | H3: 1001008611 | I3: 深圳
A4: BM002 | B4: HPMC-002 | C4: GGXH-002 | D4: 个 | E4: 25 | F4: 广州鸿达科技有限公司 | G4: 李四 | H4: 1001008612 | I4: 广州
A5: BM003 | B5: HPMC-003 | C5: GGXH-003 | D5: 个 | E5: 36 | F5: 上海鸿达科技有限公司 | G5: 王五 | H5: 1001008613 | I5: 上海
A6: BM004 | B6: HPMC-004 | C6: GGXH-004 | D6: 个 | E6: 19 | F6: 北京鸿达科技有限公司 | G6: 赵六 | H6: 1001008614 | I6: 北京
A7: BM005 | B7: HPMC-005 | C7: GGXH-005 | D7: 个 | E7: 29 | F7: 厦门鸿达科技有限公司 | G7: 洪七 | H7: 1001008615 | I7: 厦门
A8: BM006 | B8: HPMC-006 | C8: GGXH-006 | D8: 个 | E8: 37 | F8: 珠海鸿达科技有限公司 | G8: 万八 | H8: 1001008616 | I8: 珠海
A9: BM007 | B9: HPMC-007 | C9: GGXH-007 | D9: 个 | E9: 30 | F9: 佛山鸿达科技有限公司 | G9: 汪九 | H9: 1001008617 | I9: 佛山

Sheet 客户信息
A1: 客户信息
A2: 序号 | B2: 客户名称 | C2: 联系人 | D2: 联系电话 | E2: 区域 | F2: 业务范围
A3: 01 | B3: 深圳鸿达科技有限公司 | C3: 张三 | D3: 1001008611 | E3: 深圳 | F3: 耐克春装
A4: 02 | B4: 广州鸿达科技有限公司 | C4: 李四 | D4: 1001008612 | E4: 广州 | F4: 耐克夏装
A5: 03 | B5: 上海鸿达科技有限公司 | C5: 王五 | D5: 1001008613 | E5: 上海 | F5: 耐克秋装
A6: 04 | B6: 北京鸿达科技有限公司 | C6: 赵六 | D6: 1001008614 | E6: 北京 | F6: 耐克冬装
A7: 05 | B7: 厦门鸿达科技有限公司 | C7: 洪七 | D7: 1001008615 | E7: 厦门 | F7: 特步春装
A8: 06 | B8: 珠海鸿达科技有限公司 | C8: 万八 | D8: 1001008616 | E8: 珠海 | F8: 特步夏装
A9: 07 | B9: 佛山鸿达科技有限公司 | C9: 汪九 | D9: 1001008617 | E9: 佛山 | F9: 特步秋装

Sheet 入库表
A1: 入库表
A2: 采购日期 | B2: 货品编码 | C2: 货品名称 | D2: 规格型号 | E2: 颜 色 | F2: 数 量 | G2: 单 位 | H2: 进货单价 | I2: 金 额 | J2: 实付金额 | K2: 欠款金额
A3: 2018-02-08 | B3: BM001 | C3: =VLOOKUP(B3,商品信息!A:E,2,0) -> HPMC-001 | D3: =VLOOKUP(B3,商品信息!A:E,3,0) -> GGXH-001 | E3: 红色 | F3: 192 | G3: 件 | H3: 16 | I3: =F3*H3 -> 3072 | J3: 1500 | K3: =I3-J3 -> 1572
A4: 2018-02-09 | B4: BM002 | C4: =VLOOKUP(B4,商品信息!A:E,2,0) -> HPMC-002 | D4: =VLOOKUP(B4,商品信息!A:E,3,0) -> GGXH-002 | E4: 蓝色 | F4: 265 | G4: 件 | H4: 25 | I4: =F4*H4 -> 6625 | J4: 1500 | K4: =I4-J4 -> 5125
A5: 2018-02-10 | B5: BM003 | C5: =VLOOKUP(B5,商品信息!A:E,2,0) -> HPMC-003 | D5: =VLOOKUP(B5,商品信息!A:E,3,0) -> GGXH-003 | E5: 黑色 | F5: 165 | G5: 件 | H5: 36 | I5: 5940 | J5: 1500 | K5: 4440
A6: 2018-02-11 | B6: BM004 | C6: =VLOOKUP(B6,商品信息!A:E,2,0) -> HPMC-004 | D6: =VLOOKUP(B6,商品信息!A:E,3,0) -> GGXH-004 | E6: 黄色 | F6: 98 | G6: 件 | H6: 19 | I6: 1862 | J6: 1500 | K6: 362
A7: 2018-02-12 | B7: BM005 | C7: =VLOOKUP(B7,商品信息!A:E,2,0) -> HPMC-005 | D7: =VLOOKUP(B7,商品信息!A:E,3,0) -> GGXH-005 | E7: 紫色 | F7: 209 | G7: 件 | H7: 29 | I7: 6061 | J7: 1500 | K7: 4561
A8: 2018-02-13 | B8: BM006 | C8: =VLOOKUP(B8,商品信息!A:E,2,0) -> HPMC-006 | D8: =VLOOKUP(B8,商品信息!A:E,3,0) -> GGXH-006 | E8: 红色 | F8: 350 | G8: 件 | H8: 25 | I8: 8750 | J8: 1500 | K8: 7250
A9: 2018-02-14 | B9: BM007 | C9: =VLOOKUP(B9,商品信息!A:E,2,0) -> HPMC-007 | D9: =VLOOKUP(B9,商品信息!A:E,3,0) -> GGXH-007 | E9: 橙色 | F9: 189 | G9: 件 | H9: 30 | I9: 5670 | J9: 1500 | K9: 4170
I10: 0 | K10: 0
I11: 0 | K11: 0
I12: 0 | K12: 0
I13: 0 | K13: 0
I14: 0 | K14: 0
I15: 0 | K15: 0
I16: 0 | K16: 0
I17: 0 | K17: 0
I18: 0 | K18: 0
I19: 0 | K19: 0
I20: 0 | K20: 0
I21: 0 | K21: 0
I22: 0 | K22: 0
I23: 0 | K23: 0
I24: 0 | K24: 0
I25: 0 | K25: 0
I26: 0 | K26: 0
I27: 0 | K27: 0
I28: 0 | K28: 0
I29: 0 | K29: 0
I30: 0 | K30: 0
I31: 0 | K31: 0
I32: 0 | K32: 0
I33: 0 | K33: 0
I34: 0 | K34: 0
I35: 0 | K35: 0
I36: 0 | K36: 0
I37: 0 | K37: 0
I38: 0 | K38: 0
I39: 0 | K39: 0
I40: 0 | K40: 0
I41: 0 | K41: 0
I42: 0 | K42: 0
I43: 0 | K43: 0
I44: 0 | K44: 0
I45: 0 | K45: 0
I46: 0 | K46: 0
I47: 0 | K47: 0
I48: 0 | K48: 0
I49: 0 | K49: 0
I50: 0 | K50: 0
I51: 0 | K51: 0
I52: 0 | K52: 0
I53: 0 | K53: 0
I54: 0 | K54: 0
I55: 0 | K55: 0
I56: 0 | K56: 0
I57: 0 | K57: 0
I58: 0 | K58: 0
I59: 0 | K59: 0
I60: 0 | K60: 0
I61: 0 | K61: 0
I62: 0 | K62: 0
I63: 0 | K63: 0
I64: 0 | K64: 0
I65: 0 | K65: 0
I66: 0 | K66: 0
I67: 0 | K67: 0
I68: =F68*H68 -> 0 | K68: =I68-J68 -> 0
I69: 0 | K69: 0
I70: 0 | K70: 0
I71: 0 | K71: 0
I72: 0 | K72: 0
I73: 0 | K73: 0
I74: 0 | K74: 0
I75: 0 | K75: 0
I76: 0 | K76: 0
I77: 0 | K77: 0
I78: 0 | K78: 0
I79: 0 | K79: 0
I80: 0 | K80: 0
I81: 0 | K81: 0
I82: 0 | K82: 0
I83: 0 | K83: 0
I84: 0 | K84: 0
I85: 0 | K85: 0
I86: 0 | K86: 0
I87: 0 | K87: 0
I88: 0 | K88: 0
I89: 0 | K89: 0
I90: 0 | K90: 0
I91: 0 | K91: 0
I92: 0 | K92: 0
I93: 0 | K93: 0
I94: 0 | K94: 0
I95: 0 | K95: 0
I96: 0 | K96: 0
I97: 0 | K97: 0
I98: 0 | K98: 0
I99: 0 | K99: 0
I100: 0 | K100: 0
I101: 0 | K101: 0
I102: 0 | K102: 0
I103: 0 | K103: 0
I104: 0 | K104: 0
I105: 0 | K105: 0
I106: 0 | K106: 0
I107: 0 | K107: 0
I108: 0 | K108: 0
I109: 0 | K109: 0
I110: 0 | K110: 0
I111: 0 | K111: 0
I112: 0 | K112: 0
I113: 0 | K113: 0
I114: 0 | K114: 0
I115: 0 | K115: 0
I116: 0 | K116: 0
I117: 0 | K117: 0
I118: 0 | K118: 0
I119: 0 | K119: 0
I120: 0 | K120: 0
I121: 0 | K121: 0
I122: 0 | K122: 0
I123: 0 | K123: 0
I124: 0 | K124: 0
I125: 0 | K125: 0
I126: 0 | K126: 0
I127: 0 | K127: 0
I128: 0 | K128: 0
I129: 0 | K129: 0
I130: 0 | K130: 0
I131: 0 | K131: 0
I132: =F132*H132 -> 0 | K132: =I132-J132 -> 0
I133: 0 | K133: 0
I134: 0 | K134: 0
I135: 0 | K135: 0
I136: 0 | K136: 0
I137: 0 | K137: 0
I138: 0 | K138: 0
I139: 0 | K139: 0
I140: 0 | K140: 0
I141: 0 | K141: 0
I142: 0 | K142: 0
I143: 0 | K143: 0
I144: 0 | K144: 0
I145: 0 | K145: 0
I146: 0 | K146: 0
I147: 0 | K147: 0
I148: 0 | K148: 0
I149: 0 | K149: 0
I150: 0 | K150: 0
I151: 0 | K151: 0
I152: 0 | K152: 0
I153: 0 | K153: 0
I154: 0 | K154: 0
I155: 0 | K155: 0
I156: 0 | K156: 0
I157: 0 | K157: 0
I158: 0 | K158: 0
I159: 0 | K159: 0
I160: 0 | K160: 0
I161: 0 | K161: 0
I162: 0 | K162: 0
I163: 0 | K163: 0
I164: 0 | K164: 0
I165: 0 | K165: 0
I166: 0 | K166: 0
I167: 0 | K167: 0
I168: 0 | K168: 0
I169: 0 | K169: 0
I170: 0 | K170: 0
I171: 0 | K171: 0
I172: 0 | K172: 0
I173: 0 | K173: 0
I174: 0 | K174: 0
I175: 0 | K175: 0
I176: 0 | K176: 0
I177: 0 | K177: 0
I178: 0 | K178: 0
I179: 0 | K179: 0
I180: 0 | K180: 0
I181: 0 | K181: 0
I182: 0 | K182: 0
I183: 0 | K183: 0
I184: 0 | K184: 0
I185: 0 | K185: 0
I186: 0 | K186: 0
I187: 0 | K187: 0
I188: 0 | K188: 0
I189: 0 | K189: 0
I190: 0 | K190: 0
I191: 0 | K191: 0
I192: 0 | K192: 0
I193: 0 | K193: 0
I194: 0 | K194: 0
I195: 0 | K195: 0
I196: =F196*H196 -> 0 | K196: =I196-J196 -> 0
I197: 0 | K197: 0
I198: 0 | K198: 0
I199: 0 | K199: 0
I200: 0 | K200: 0

Sheet 出库表
A1: 出库表
A2: 销售日期 | B2: 货品编码 | C2: 货品名称 | D2: 规格型号 | E2: 颜 色 | F2: 数 量 | G2: 单 位 | H2: 销售单价 | I2: 金 额 | J2: 实收金额 | K2: 欠收款金额
A3: 2018-02-20 | B3: BM001 | C3: =VLOOKUP(B3,商品信息!A:E,2,0) -> HPMC-001 | D3: =VLOOKUP(B3,商品信息!A:E,3,0) -> GGXH-001 | E3: 红色 | F3: 65 | G3: 件 | H3: 25 | I3: =H3*F3 -> 1625 | J3: 100 | K3: =I3-J3 -> 1525
A4: 2018-02-21 | B4: BM002 | C4: =VLOOKUP(B4,商品信息!A:E,2,0) -> HPMC-002 | D4: =VLOOKUP(B4,商品信息!A:E,3,0) -> GGXH-002 | E4: 蓝色 | F4: 192 | G4: 件 | H4: 37 | I4: =H4*F4 -> 7104 | J4: 100 | K4: =I4-J4 -> 7004
A5: 2018-02-22 | B5: BM003 | C5: =VLOOKUP(B5,商品信息!A:E,2,0) -> HPMC-003 | D5: =VLOOKUP(B5,商品信息!A:E,3,0) -> GGXH-003 | E5: 黑色 | F5: 108 | G5: 件 | H5: 45 | I5: 4860 | J5: 100 | K5: 4760
A6: 2018-02-23 | B6: BM004 | C6: =VLOOKUP(B6,商品信息!A:E,2,0) -> HPMC-004 | D6: =VLOOKUP(B6,商品信息!A:E,3,0) -> GGXH-004 | E6: 黄色 | F6: 37 | G6: 件 | H6: 30 | I6: 1110 | J6: 100 | K6: 1010
A7: 2018-02-24 | B7: BM005 | C7: =VLOOKUP(B7,商品信息!A:E,2,0) -> HPMC-005 | D7: =VLOOKUP(B7,商品信息!A:E,3,0) -> GGXH-005 | E7: 紫色 | F7: 163 | G7: 件 | H7: 41 | I7: 6683 | J7: 100 | K7: 6583
A8: 2018-02-25 | B8: BM006 | C8: =VLOOKUP(B8,商品信息!A:E,2,0) -> HPMC-006 | D8: =VLOOKUP(B8,商品信息!A:E,3,0) -> GGXH-006 | E8: 金色 | F8: 295 | G8: 件 | H8: 53 | I8: 15635 | J8: 10000 | K8: 5635
A9: 2018-02-26 | B9: BM007 | C9: =VLOOKUP(B9,商品信息!A:E,2,0) -> HPMC-007 | D9: =VLOOKUP(B9,商品信息!A:E,3,0) -> GGXH-007 | E9: 橙色 | F9: 118 | G9: 件 | H9: 45 | I9: 5310 | J9: 1000 | K9: 4310
I10: 0 | K10: 0
I11: 0 | K11: 0
I12: 0 | K12: 0
I13: 0 | K13: 0
I14: 0 | K14: 0
I15: 0 | K15: 0
I16: 0 | K16: 0
I17: 0 | K17: 0
I18: 0 | K18: 0
I19: 0 | K19: 0
I20: 0 | K20: 0
I21: 0 | K21: 0
I22: 0 | K22: 0
I23: 0 | K23: 0
I24: 0 | K24: 0
I25: 0 | K25: 0
I26: 0 | K26: 0
I27: 0 | K27: 0
I28: 0 | K28: 0
I29: 0 | K29: 0
I30: 0 | K30: 0
I31: 0 | K31: 0
I32: 0 | K32: 0
I33: 0 | K33: 0
I34: 0 | K34: 0
I35: 0 | K35: 0
I36: 0 | K36: 0
I37: 0 | K37: 0
I38: 0 | K38: 0
I39: 0 | K39: 0
I40: 0 | K40: 0
I41: 0 | K41: 0
I42: 0 | K42: 0
I43: 0 | K43: 0
I44: 0 | K44: 0
I45: 0 | K45: 0
I46: 0 | K46: 0
I47: 0 | K47: 0
I48: 0 | K48: 0
I49: 0 | K49: 0
I50: 0 | K50: 0
I51: 0 | K51: 0
I52: 0 | K52: 0
I53: 0 | K53: 0
I54: 0 | K54: 0
I55: 0 | K55: 0
I56: 0 | K56: 0
I57: 0 | K57: 0
I58: 0 | K58: 0
I59: 0 | K59: 0
I60: 0 | K60: 0
I61: 0 | K61: 0
I62: 0 | K62: 0
I63: 0 | K63: 0
I64: 0 | K64: 0
I65: 0 | K65: 0
I66: 0 | K66: 0
I67: 0 | K67: 0
I68: =H68*F68 -> 0 | K68: =I68-J68 -> 0
I69: 0 | K69: 0
I70: 0 | K70: 0
I71: 0 | K71: 0
I72: 0 | K72: 0
I73: 0 | K73: 0
I74: 0 | K74: 0
I75: 0 | K75: 0
I76: 0 | K76: 0
I77: 0 | K77: 0
I78: 0 | K78: 0
I79: 0 | K79: 0
I80: 0 | K80: 0
I81: 0 | K81: 0
I82: 0 | K82: 0
I83: 0 | K83: 0
I84: 0 | K84: 0
I85: 0 | K85: 0
I86: 0 | K86: 0
I87: 0 | K87: 0
I88: 0 | K88: 0
I89: 0 | K89: 0
I90: 0 | K90: 0
I91: 0 | K91: 0
I92: 0 | K92: 0
I93: 0 | K93: 0
I94: 0 | K94: 0
I95: 0 | K95: 0
I96: 0 | K96: 0
I97: 0 | K97: 0
I98: 0 | K98: 0
I99: 0 | K99: 0
I100: 0 | K100: 0
I101: 0 | K101: 0
I102: 0 | K102: 0
I103: 0 | K103: 0
I104: 0 | K104: 0
I105: 0 | K105: 0
I106: 0 | K106: 0
I107: 0 | K107: 0
I108: 0 | K108: 0
I109: 0 | K109: 0
I110: 0 | K110: 0
I111: 0 | K111: 0
I112: 0 | K112: 0
I113: 0 | K113: 0
I114: 0 | K114: 0
I115: 0 | K115: 0
I116: 0 | K116: 0
I117: 0 | K117: 0
I118: 0 | K118: 0
I119: 0 | K119: 0
I120: 0 | K120: 0
I121: 0 | K121: 0
I122: 0 | K122: 0
I123: 0 | K123: 0
I124: 0 | K124: 0
I125: 0 | K125: 0
I126: 0 | K126: 0
I127: 0 | K127: 0
I128: 0 | K128: 0
I129: 0 | K129: 0
I130: 0 | K130: 0
I131: 0 | K131: 0
I132: =H132*F132 -> 0 | K132: =I132-J132 -> 0
I133: 0 | K133: 0
I134: 0 | K134: 0
I135: 0 | K135: 0
I136: 0 | K136: 0
I137: 0 | K137: 0
I138: 0 | K138: 0
I139: 0 | K139: 0
I140: 0 | K140: 0
I141: 0 | K141: 0
I142: 0 | K142: 0
I143: 0 | K143: 0
I144: 0 | K144: 0
I145: 0 | K145: 0
I146: 0 | K146: 0
I147: 0 | K147: 0
I148: 0 | K148: 0
I149: 0 | K149: 0
I150: 0 | K150: 0
I151: 0 | K151: 0
I152: 0 | K152: 0
I153: 0 | K153: 0
I154: 0 | K154: 0
I155: 0 | K155: 0
I156: 0 | K156: 0
I157: 0 | K157: 0
I158: 0 | K158: 0
I159: 0 | K159: 0
I160: 0 | K160: 0
I161: 0 | K161: 0
I162: 0 | K162: 0
I163: 0 | K163: 0
I164: 0 | K164: 0
I165: 0 | K165: 0
I166: 0 | K166: 0
I167: 0 | K167: 0
I168: 0 | K168: 0
I169: 0 | K169: 0
I170: 0 | K170: 0
I171: 0 | K171: 0
I172: 0 | K172: 0
I173: 0 | K173: 0
I174: 0 | K174: 0
I175: 0 | K175: 0
I176: 0 | K176: 0
I177: 0 | K177: 0
I178: 0 | K178: 0
I179: 0 | K179: 0
I180: 0 | K180: 0
I181: 0 | K181: 0
I182: 0 | K182: 0
I183: 0 | K183: 0
I184: 0 | K184: 0
I185: 0 | K185: 0
I186: 0 | K186: 0
I187: 0 | K187: 0
I188: 0 | K188: 0
I189: 0 | K189: 0
I190: 0 | K190: 0
I191: 0 | K191: 0
I192: 0 | K192: 0
I193: 0 | K193: 0
I194: 0 | K194: 0
I195: 0 | K195: 0
I196: =H196*F196 -> 0 | K196: =I196-J196 -> 0
I197: 0 | K197: 0
I198: 0 | K198: 0
I199: 0 | K199: 0
I200: 0 | K200: 0

Sheet 库存表
A1: 库存表
A2: 货品编码 | B2: 货品名称 | C2: 规格型号 | D2: 颜 色 | E2: 单 位 | F2: 入库数量 | G2: 进货单价 | H2: 金 额 | I2: 出库数量 | J2: 销售单价 | K2: 金 额 | L2: 库存数量 | M2: 利润
A3: BM001 | B3: =VLOOKUP(A3,商品信息!A:E,2,0) -> HPMC-001 | C3: =VLOOKUP(A3,商品信息!A:E,3,0) -> GGXH-001 | D3: 红色 | E3: 件 | F3: =VLOOKUP(A3,入库表!B:H,5,0) -> 192 | G3: =VLOOKUP(A3,入库表!B:H,7,0) -> 16 | H3: =F3*G3 -> 3072 | I3: 66 | J3: =VLOOKUP(A3,出库表!B:H,7,0) -> 25 | K3: =I3*J3 -> 1650 | L3: =F3-I3 -> 126 | M3: =I3*(J3-G3) -> 594
A4: BM002 | B4: =VLOOKUP(A4,商品信息!A:E,2,0) -> HPMC-002 | C4: =VLOOKUP(A4,商品信息!A:E,3,0) -> GGXH-002 | D4: 蓝色 | E4: 件 | F4: =VLOOKUP(A4,入库表!B:H,5,0) -> 265 | G4: =VLOOKUP(A4,入库表!B:H,7,0) -> 25 | H4: 6625 | I4: =VLOOKUP(A4,出库表!B:H,5,0) -> 192 | J4: =VLOOKUP(A4,出库表!B:H,7,0) -> 37 | K4: =I4*J4 -> 7104 | L4: =F4-I4 -> 73 | M4: =I4*(J4-G4) -> 2304
A5: BM003 | B5: =VLOOKUP(A5,商品信息!A:E,2,0) -> HPMC-003 | C5: =VLOOKUP(A5,商品信息!A:E,3,0) -> GGXH-003 | D5: 黑色 | E5: 件 | F5: =VLOOKUP(A5,入库表!B:H,5,0) -> 165 | G5: =VLOOKUP(A5,入库表!B:H,7,0) -> 36 | H5: 5940 | I5: =VLOOKUP(A5,出库表!B:H,5,0) -> 108 | J5: =VLOOKUP(A5,出库表!B:H,7,0) -> 45 | K5: 4860 | L5: 57 | M5: 972
A6: BM004 | B6: =VLOOKUP(A6,商品信息!A:E,2,0) -> HPMC-004 | C6: =VLOOKUP(A6,商品信息!A:E,3,0) -> GGXH-004 | D6: 黄色 | E6: 件 | F6: =VLOOKUP(A6,入库表!B:H,5,0) -> 98 | G6: =VLOOKUP(A6,入库表!B:H,7,0) -> 19 | H6: 1862 | I6: =VLOOKUP(A6,出库表!B:H,5,0) -> 37 | J6: =VLOOKUP(A6,出库表!B:H,7,0) -> 30 | K6: 1110 | L6: 61 | M6: 407
A7: BM005 | B7: =VLOOKUP(A7,商品信息!A:E,2,0) -> HPMC-005 | C7: =VLOOKUP(A7,商品信息!A:E,3,0) -> GGXH-005 | D7: 紫色 | E7: 件 | F7: =VLOOKUP(A7,入库表!B:H,5,0) -> 209 | G7: =VLOOKUP(A7,入库表!B:H,7,0) -> 29 | H7: 6061 | I7: =VLOOKUP(A7,出库表!B:H,5,0) -> 163 | J7: =VLOOKUP(A7,出库表!B:H,7,0) -> 41 | K7: 6683 | L7: 46 | M7: 1956
A8: BM006 | B8: =VLOOKUP(A8,商品信息!A:E,2,0) -> HPMC-006 | C8: =VLOOKUP(A8,商品信息!A:E,3,0) -> GGXH-006 | D8: 红色 | E8: 件 | F8: =VLOOKUP(A8,入库表!B:H,5,0) -> 350 | G8: =VLOOKUP(A8,入库表!B:H,7,0) -> 25 | H8: 8750 | I8: =VLOOKUP(A8,出库表!B:H,5,0) -> 295 | J8: =VLOOKUP(A8,出库表!B:H,7,0) -> 53 | K8: 15635 | L8: 55 | M8: 8260
A9: BM007 | B9: =VLOOKUP(A9,商品信息!A:E,2,0) -> HPMC-007 | C9: =VLOOKUP(A9,商品信息!A:E,3,0) -> GGXH-007 | D9: 橙色 | E9: 件 | F9: =VLOOKUP(A9,入库表!B:H,5,0) -> 189 | G9: =VLOOKUP(A9,入库表!B:H,7,0) -> 30 | H9: 5670 | I9: =VLOOKUP(A9,出库表!B:H,5,0) -> 118 | J9: =VLOOKUP(A9,出库表!B:H,7,0) -> 45 | K9: 5310 | L9: 71 | M9: 1770
B10: =VLOOKUP(A10,商品信息!A:E,2,0) ->  | C10: =VLOOKUP(A10,商品信息!A:E,3,0) ->  | F10: =VLOOKUP(A10,入库表!B:H,5,0) ->  | G10: =VLOOKUP(A10,入库表!B:H,7,0) ->  | I10: =VLOOKUP(A10,出库表!B:H,5,0) ->  | J10: =VLOOKUP(A10,出库表!B:H,7,0) -> 
B11: =VLOOKUP(A11,商品信息!A:E,2,0) ->  | C11: =VLOOKUP(A11,商品信息!A:E,3,0) ->  | F11: =VLOOKUP(A11,入库表!B:H,5,0) ->  | G11: =VLOOKUP(A11,入库表!B:H,7,0) ->  | I11: =VLOOKUP(A11,出库表!B:H,5,0) ->  | J11: =VLOOKUP(A11,出库表!B:H,7,0) -> 
B12: =VLOOKUP(A12,商品信息!A:E,2,0) ->  | C12: =VLOOKUP(A12,商品信息!A:E,3,0) ->  | F12: =VLOOKUP(A12,入库表!B:H,5,0) ->  | G12: =VLOOKUP(A12,入库表!B:H,7,0) ->  | I12: =VLOOKUP(A12,出库表!B:H,5,0) ->  | J12: =VLOOKUP(A12,出库表!B:H,7,0) -> 
B13: =VLOOKUP(A13,商品信息!A:E,2,0) ->  | C13: =VLOOKUP(A13,商品信息!A:E,3,0) ->  | F13: =VLOOKUP(A13,入库表!B:H,5,0) ->  | G13: =VLOOKUP(A13,入库表!B:H,7,0) ->  | I13: =VLOOKUP(A13,出库表!B:H,5,0) ->  | J13: =VLOOKUP(A13,出库表!B:H,7,0) -> 
B14: =VLOOKUP(A14,商品信息!A:E,2,0) ->  | C14: =VLOOKUP(A14,商品信息!A:E,3,0) ->  | F14: =VLOOKUP(A14,入库表!B:H,5,0) ->  | G14: =VLOOKUP(A14,入库表!B:H,7,0) ->  | I14: =VLOOKUP(A14,出库表!B:H,5,0) ->  | J14: =VLOOKUP(A14,出库表!B:H,7,0) -> 
B15: =VLOOKUP(A15,商品信息!A:E,2,0) ->  | C15: =VLOOKUP(A15,商品信息!A:E,3,0) ->  | F15: =VLOOKUP(A15,入库表!B:H,5,0) ->  | G15: =VLOOKUP(A15,入库表!B:H,7,0) ->  | I15: =VLOOKUP(A15,出库表!B:H,5,0) ->  | J15: =VLOOKUP(A15,出库表!B:H,7,0) -> 
B16: =VLOOKUP(A16,商品信息!A:E,2,0) ->  | C16: =VLOOKUP(A16,商品信息!A:E,3,0) ->  | F16: =VLOOKUP(A16,入库表!B:H,5,0) ->  | G16: =VLOOKUP(A16,入库表!B:H,7,0) ->  | I16: =VLOOKUP(A16,出库表!B:H,5,0) ->  | J16: =VLOOKUP(A16,出库表!B:H,7,0) -> 
B17: =VLOOKUP(A17,商品信息!A:E,2,0) ->  | C17: =VLOOKUP(A17,商品信息!A:E,3,0) ->  | F17: =VLOOKUP(A17,入库表!B:H,5,0) ->  | G17: =VLOOKUP(A17,入库表!B:H,7,0) ->  | I17: =VLOOKUP(A17,出库表!B:H,5,0) ->  | J17: =VLOOKUP(A17,出库表!B:H,7,0) -> 
B18: =VLOOKUP(A18,商品信息!A:E,2,0) ->  | C18: =VLOOKUP(A18,商品信息!A:E,3,0) ->  | F18: =VLOOKUP(A18,入库表!B:H,5,0) ->  | G18: =VLOOKUP(A18,入库表!B:H,7,0) ->  | I18: =VLOOKUP(A18,出库表!B:H,5,0) ->  | J18: =VLOOKUP(A18,出库表!B:H,7,0) -> 
B19: =VLOOKUP(A19,商品信息!A:E,2,0) ->  | C19: =VLOOKUP(A19,商品信息!A:E,3,0) ->  | F19: =VLOOKUP(A19,入库表!B:H,5,0) ->  | G19: =VLOOKUP(A19,入库表!B:H,7,0) ->  | I19: =VLOOKUP(A19,出库表!B:H,5,0) ->  | J19: =VLOOKUP(A19,出库表!B:H,7,0) -> 
B20: =VLOOKUP(A20,商品信息!A:E,2,0) ->  | C20: =VLOOKUP(A20,商品信息!A:E,3,0) ->  | F20: =VLOOKUP(A20,入库表!B:H,5,0) ->  | G20: =VLOOKUP(A20,入库表!B:H,7,0) ->  | I20: =VLOOKUP(A20,出库表!B:H,5,0) ->  | J20: =VLOOKUP(A20,出库表!B:H,7,0) -> 
B21: =VLOOKUP(A21,商品信息!A:E,2,0) ->  | C21: =VLOOKUP(A21,商品信息!A:E,3,0) ->  | F21: =VLOOKUP(A21,入库表!B:H,5,0) ->  | G21: =VLOOKUP(A21,入库表!B:H,7,0) ->  | I21: =VLOOKUP(A21,出库表!B:H,5,0) ->  | J21: =VLOOKUP(A21,出库表!B:H,7,0) -> 
B22: =VLOOKUP(A22,商品信息!A:E,2,0) ->  | C22: =VLOOKUP(A22,商品信息!A:E,3,0) ->  | F22: =VLOOKUP(A22,入库表!B:H,5,0) ->  | G22: =VLOOKUP(A22,入库表!B:H,7,0) ->  | I22: =VLOOKUP(A22,出库表!B:H,5,0) ->  | J22: =VLOOKUP(A22,出库表!B:H,7,0) -> 
B23: =VLOOKUP(A23,商品信息!A:E,2,0) ->  | C23: =VLOOKUP(A23,商品信息!A:E,3,0) ->  | F23: =VLOOKUP(A23,入库表!B:H,5,0) ->  | G23: =VLOOKUP(A23,入库表!B:H,7,0) ->  | I23: =VLOOKUP(A23,出库表!B:H,5,0) ->  | J23: =VLOOKUP(A23,出库表!B:H,7,0) -> 
B24: =VLOOKUP(A24,商品信息!A:E,2,0) ->  | C24: =VLOOKUP(A24,商品信息!A:E,3,0) ->  | F24: =VLOOKUP(A24,入库表!B:H,5,0) ->  | G24: =VLOOKUP(A24,入库表!B:H,7,0) ->  | I24: =VLOOKUP(A24,出库表!B:H,5,0) ->  | J24: =VLOOKUP(A24,出库表!B:H,7,0) -> 
B25: =VLOOKUP(A25,商品信息!A:E,2,0) ->  | C25: =VLOOKUP(A25,商品信息!A:E,3,0) ->  | F25: =VLOOKUP(A25,入库表!B:H,5,0) ->  | G25: =VLOOKUP(A25,入库表!B:H,7,0) ->  | I25: =VLOOKUP(A25,出库表!B:H,5,0) ->  | J25: =VLOOKUP(A25,出库表!B:H,7,0) -> 
B26: =VLOOKUP(A26,商品信息!A:E,2,0) ->  | C26: =VLOOKUP(A26,商品信息!A:E,3,0) ->  | F26: =VLOOKUP(A26,入库表!B:H,5,0) ->  | G26: =VLOOKUP(A26,入库表!B:H,7,0) ->  | I26: =VLOOKUP(A26,出库表!B:H,5,0) ->  | J26: =VLOOKUP(A26,出库表!B:H,7,0) -> 
B27: =VLOOKUP(A27,商品信息!A:E,2,0) ->  | C27: =VLOOKUP(A27,商品信息!A:E,3,0) ->  | F27: =VLOOKUP(A27,入库表!B:H,5,0) ->  | G27: =VLOOKUP(A27,入库表!B:H,7,0) ->  | I27: =VLOOKUP(A27,出库表!B:H,5,0) ->  | J27: =VLOOKUP(A27,出库表!B:H,7,0) -> 
B28: =VLOOKUP(A28,商品信息!A:E,2,0) ->  | C28: =VLOOKUP(A28,商品信息!A:E,3,0) ->  | F28: =VLOOKUP(A28,入库表!B:H,5,0) ->  | G28: =VLOOKUP(A28,入库表!B:H,7,0) ->  | I28: =VLOOKUP(A28,出库表!B:H,5,0) ->  | J28: =VLOOKUP(A28,出库表!B:H,7,0) -> 
B29: =VLOOKUP(A29,商品信息!A:E,2,0) ->  | C29: =VLOOKUP(A29,商品信息!A:E,3,0) ->  | F29: =VLOOKUP(A29,入库表!B:H,5,0) ->  | G29: =VLOOKUP(A29,入库表!B:H,7,0) ->  | I29: =VLOOKUP(A29,出库表!B:H,5,0) ->  | J29: =VLOOKUP(A29,出库表!B:H,7,0) -> 
B30: =VLOOKUP(A30,商品信息!A:E,2,0) ->  | C30: =VLOOKUP(A30,商品信息!A:E,3,0) ->  | F30: =VLOOKUP(A30,入库表!B:H,5,0) ->  | G30: =VLOOKUP(A30,入库表!B:H,7,0) ->  | I30: =VLOOKUP(A30,出库表!B:H,5,0) ->  | J30: =VLOOKUP(A30,出库表!B:H,7,0) -> 
B31: =VLOOKUP(A31,商品信息!A:E,2,0) ->  | C31: =VLOOKUP(A31,商品信息!A:E,3,0) ->  | F31: =VLOOKUP(A31,入库表!B:H,5,0) ->  | G31: =VLOOKUP(A31,入库表!B:H,7,0) ->  | I31: =VLOOKUP(A31,出库表!B:H,5,0) ->  | J31: =VLOOKUP(A31,出库表!B:H,7,0) -> 
B32: =VLOOKUP(A32,商品信息!A:E,2,0) ->  | C32: =VLOOKUP(A32,商品信息!A:E,3,0) ->  | F32: =VLOOKUP(A32,入库表!B:H,5,0) ->  | G32: =VLOOKUP(A32,入库表!B:H,7,0) ->  | I32: =VLOOKUP(A32,出库表!B:H,5,0) ->  | J32: =VLOOKUP(A32,出库表!B:H,7,0) -> 
B33: =VLOOKUP(A33,商品信息!A:E,2,0) ->  | C33: =VLOOKUP(A33,商品信息!A:E,3,0) ->  | F33: =VLOOKUP(A33,入库表!B:H,5,0) ->  | G33: =VLOOKUP(A33,入库表!B:H,7,0) ->  | I33: =VLOOKUP(A33,出库表!B:H,5,0) ->  | J33: =VLOOKUP(A33,出库表!B:H,7,0) -> 
B34: =VLOOKUP(A34,商品信息!A:E,2,0) ->  | C34: =VLOOKUP(A34,商品信息!A:E,3,0) ->  | F34: =VLOOKUP(A34,入库表!B:H,5,0) ->  | G34: =VLOOKUP(A34,入库表!B:H,7,0) ->  | I34: =VLOOKUP(A34,出库表!B:H,5,0) ->  | J34: =VLOOKUP(A34,出库表!B:H,7,0) -> 
B35: =VLOOKUP(A35,商品信息!A:E,2,0) ->  | C35: =VLOOKUP(A35,商品信息!A:E,3,0) ->  | F35: =VLOOKUP(A35,入库表!B:H,5,0) ->  | G35: =VLOOKUP(A35,入库表!B:H,7,0) ->  | I35: =VLOOKUP(A35,出库表!B:H,5,0) ->  | J35: =VLOOKUP(A35,出库表!B:H,7,0) -> 
B36: =VLOOKUP(A36,商品信息!A:E,2,0) ->  | C36: =VLOOKUP(A36,商品信息!A:E,3,0) ->  | F36: =VLOOKUP(A36,入库表!B:H,5,0) ->  | G36: =VLOOKUP(A36,入库表!B:H,7,0) ->  | I36: =VLOOKUP(A36,出库表!B:H,5,0) ->  | J36: =VLOOKUP(A36,出库表!B:H,7,0) -> 
B37: =VLOOKUP(A37,商品信息!A:E,2,0) ->  | C37: =VLOOKUP(A37,商品信息!A:E,3,0) ->  | F37: =VLOOKUP(A37,入库表!B:H,5,0) ->  | G37: =VLOOKUP(A37,入库表!B:H,7,0) ->  | I37: =VLOOKUP(A37,出库表!B:H,5,0) ->  | J37: =VLOOKUP(A37,出库表!B:H,7,0) -> 
B38: =VLOOKUP(A38,商品信息!A:E,2,0) ->  | C38: =VLOOKUP(A38,商品信息!A:E,3,0) ->  | F38: =VLOOKUP(A38,入库表!B:H,5,0) ->  | G38: =VLOOKUP(A38,入库表!B:H,7,0) ->  | I38: =VLOOKUP(A38,出库表!B:H,5,0) ->  | J38: =VLOOKUP(A38,出库表!B:H,7,0) -> 
B39: =VLOOKUP(A39,商品信息!A:E,2,0) ->  | C39: =VLOOKUP(A39,商品信息!A:E,3,0) ->  | F39: =VLOOKUP(A39,入库表!B:H,5,0) ->  | G39: =VLOOKUP(A39,入库表!B:H,7,0) ->  | I39: =VLOOKUP(A39,出库表!B:H,5,0) ->  | J39: =VLOOKUP(A39,出库表!B:H,7,0) -> 
B40: =VLOOKUP(A40,商品信息!A:E,2,0) ->  | C40: =VLOOKUP(A40,商品信息!A:E,3,0) ->  | F40: =VLOOKUP(A40,入库表!B:H,5,0) ->  | G40: =VLOOKUP(A40,入库表!B:H,7,0) ->  | I40: =VLOOKUP(A40,出库表!B:H,5,0) ->  | J40: =VLOOKUP(A40,出库表!B:H,7,0) -> 
B41: =VLOOKUP(A41,商品信息!A:E,2,0) ->  | C41: =VLOOKUP(A41,商品信息!A:E,3,0) ->  | F41: =VLOOKUP(A41,入库表!B:H,5,0) ->  | G41: =VLOOKUP(A41,入库表!B:H,7,0) ->  | I41: =VLOOKUP(A41,出库表!B:H,5,0) ->  | J41: =VLOOKUP(A41,出库表!B:H,7,0) -> 
B42: =VLOOKUP(A42,商品信息!A:E,2,0) ->  | C42: =VLOOKUP(A42,商品信息!A:E,3,0) ->  | F42: =VLOOKUP(A42,入库表!B:H,5,0) ->  | G42: =VLOOKUP(A42,入库表!B:H,7,0) ->  | I42: =VLOOKUP(A42,出库表!B:H,5,0) ->  | J42: =VLOOKUP(A42,出库表!B:H,7,0) -> 
B43: =VLOOKUP(A43,商品信息!A:E,2,0) ->  | C43: =VLOOKUP(A43,商品信息!A:E,3,0) ->  | F43: =VLOOKUP(A43,入库表!B:H,5,0) ->  | G43: =VLOOKUP(A43,入库表!B:H,7,0) ->  | I43: =VLOOKUP(A43,出库表!B:H,5,0) ->  | J43: =VLOOKUP(A43,出库表!B:H,7,0) -> 
B44: =VLOOKUP(A44,商品信息!A:E,2,0) ->  | C44: =VLOOKUP(A44,商品信息!A:E,3,0) ->  | F44: =VLOOKUP(A44,入库表!B:H,5,0) ->  | G44: =VLOOKUP(A44,入库表!B:H,7,0) ->  | I44: =VLOOKUP(A44,出库表!B:H,5,0) ->  | J44: =VLOOKUP(A44,出库表!B:H,7,0) -> 
B45: =VLOOKUP(A45,商品信息!A:E,2,0) ->  | C45: =VLOOKUP(A45,商品信息!A:E,3,0) ->  | F45: =VLOOKUP(A45,入库表!B:H,5,0) ->  | G45: =VLOOKUP(A45,入库表!B:H,7,0) ->  | I45: =VLOOKUP(A45,出库表!B:H,5,0) ->  | J45: =VLOOKUP(A45,出库表!B:H,7,0) -> 
B46: =VLOOKUP(A46,商品信息!A:E,2,0) ->  | C46: =VLOOKUP(A46,商品信息!A:E,3,0) ->  | F46: =VLOOKUP(A46,入库表!B:H,5,0) ->  | G46: =VLOOKUP(A46,入库表!B:H,7,0) ->  | I46: =VLOOKUP(A46,出库表!B:H,5,0) ->  | J46: =VLOOKUP(A46,出库表!B:H,7,0) -> 
B47: =VLOOKUP(A47,商品信息!A:E,2,0) ->  | C47: =VLOOKUP(A47,商品信息!A:E,3,0) ->  | F47: =VLOOKUP(A47,入库表!B:H,5,0) ->  | G47: =VLOOKUP(A47,入库表!B:H,7,0) ->  | I47: =VLOOKUP(A47,出库表!B:H,5,0) ->  | J47: =VLOOKUP(A47,出库表!B:H,7,0) -> 
B48: =VLOOKUP(A48,商品信息!A:E,2,0) ->  | C48: =VLOOKUP(A48,商品信息!A:E,3,0) ->  | F48: =VLOOKUP(A48,入库表!B:H,5,0) ->  | G48: =VLOOKUP(A48,入库表!B:H,7,0) ->  | I48: =VLOOKUP(A48,出库表!B:H,5,0) ->  | J48: =VLOOKUP(A48,出库表!B:H,7,0) -> 
B49: =VLOOKUP(A49,商品信息!A:E,2,0) ->  | C49: =VLOOKUP(A49,商品信息!A:E,3,0) ->  | F49: =VLOOKUP(A49,入库表!B:H,5,0) ->  | G49: =VLOOKUP(A49,入库表!B:H,7,0) ->  | I49: =VLOOKUP(A49,出库表!B:H,5,0) ->  | J49: =VLOOKUP(A49,出库表!B:H,7,0) -> 
B50: =VLOOKUP(A50,商品信息!A:E,2,0) ->  | C50: =VLOOKUP(A50,商品信息!A:E,3,0) ->  | F50: =VLOOKUP(A50,入库表!B:H,5,0) ->  | G50: =VLOOKUP(A50,入库表!B:H,7,0) ->  | I50: =VLOOKUP(A50,出库表!B:H,5,0) ->  | J50: =VLOOKUP(A50,出库表!B:H,7,0) -> 
B51: =VLOOKUP(A51,商品信息!A:E,2,0) ->  | C51: =VLOOKUP(A51,商品信息!A:E,3,0) ->  | F51: =VLOOKUP(A51,入库表!B:H,5,0) ->  | G51: =VLOOKUP(A51,入库表!B:H,7,0) ->  | I51: =VLOOKUP(A51,出库表!B:H,5,0) ->  | J51: =VLOOKUP(A51,出库表!B:H,7,0) -> 
B52: =VLOOKUP(A52,商品信息!A:E,2,0) ->  | C52: =VLOOKUP(A52,商品信息!A:E,3,0) ->  | F52: =VLOOKUP(A52,入库表!B:H,5,0) ->  | G52: =VLOOKUP(A52,入库表!B:H,7,0) ->  | I52: =VLOOKUP(A52,出库表!B:H,5,0) ->  | J52: =VLOOKUP(A52,出库表!B:H,7,0) -> 
B53: =VLOOKUP(A53,商品信息!A:E,2,0) ->  | C53: =VLOOKUP(A53,商品信息!A:E,3,0) ->  | F53: =VLOOKUP(A53,入库表!B:H,5,0) ->  | G53: =VLOOKUP(A53,入库表!B:H,7,0) ->  | I53: =VLOOKUP(A53,出库表!B:H,5,0) ->  | J53: =VLOOKUP(A53,出库表!B:H,7,0) -> 
B54: =VLOOKUP(A54,商品信息!A:E,2,0) ->  | C54: =VLOOKUP(A54,商品信息!A:E,3,0) ->  | F54: =VLOOKUP(A54,入库表!B:H,5,0) ->  | G54: =VLOOKUP(A54,入库表!B:H,7,0) ->  | I54: =VLOOKUP(A54,出库表!B:H,5,0) ->  | J54: =VLOOKUP(A54,出库表!B:H,7,0) -> 
B55: =VLOOKUP(A55,商品信息!A:E,2,0) ->  | C55: =VLOOKUP(A55,商品信息!A:E,3,0) ->  | F55: =VLOOKUP(A55,入库表!B:H,5,0) ->  | G55: =VLOOKUP(A55,入库表!B:H,7,0) ->  | I55: =VLOOKUP(A55,出库表!B:H,5,0) ->  | J55: =VLOOKUP(A55,出库表!B:H,7,0) -> 
B56: =VLOOKUP(A56,商品信息!A:E,2,0) ->  | C56: =VLOOKUP(A56,商品信息!A:E,3,0) ->  | F56: =VLOOKUP(A56,入库表!B:H,5,0) ->  | G56: =VLOOKUP(A56,入库表!B:H,7,0) ->  | I56: =VLOOKUP(A56,出库表!B:H,5,0) ->  | J56: =VLOOKUP(A56,出库表!B:H,7,0) -> 
B57: =VLOOKUP(A57,商品信息!A:E,2,0) ->  | C57: =VLOOKUP(A57,商品信息!A:E,3,0) ->  | F57: =VLOOKUP(A57,入库表!B:H,5,0) ->  | G57: =VLOOKUP(A57,入库表!B:H,7,0) ->  | I57: =VLOOKUP(A57,出库表!B:H,5,0) ->  | J57: =VLOOKUP(A57,出库表!B:H,7,0) -> 
B58: =VLOOKUP(A58,商品信息!A:E,2,0) ->  | C58: =VLOOKUP(A58,商品信息!A:E,3,0) ->  | F58: =VLOOKUP(A58,入库表!B:H,5,0) ->  | G58: =VLOOKUP(A58,入库表!B:H,7,0) ->  | I58: =VLOOKUP(A58,出库表!B:H,5,0) ->  | J58: =VLOOKUP(A58,出库表!B:H,7,0) -> 
B59: =VLOOKUP(A59,商品信息!A:E,2,0) ->  | C59: =VLOOKUP(A59,商品信息!A:E,3,0) ->  | F59: =VLOOKUP(A59,入库表!B:H,5,0) ->  | G59: =VLOOKUP(A59,入库表!B:H,7,0) ->  | I59: =VLOOKUP(A59,出库表!B:H,5,0) ->  | J59: =VLOOKUP(A59,出库表!B:H,7,0) -> 
B60: =VLOOKUP(A60,商品信息!A:E,2,0) ->  | C60: =VLOOKUP(A60,商品信息!A:E,3,0) ->  | F60: =VLOOKUP(A60,入库表!B:H,5,0) ->  | G60: =VLOOKUP(A60,入库表!B:H,7,0) ->  | I60: =VLOOKUP(A60,出库表!B:H,5,0) ->  | J60: =VLOOKUP(A60,出库表!B:H,7,0) -> 
B61: =VLOOKUP(A61,商品信息!A:E,2,0) ->  | C61: =VLOOKUP(A61,商品信息!A:E,3,0) ->  | F61: =VLOOKUP(A61,入库表!B:H,5,0) ->  | G61: =VLOOKUP(A61,入库表!B:H,7,0) ->  | I61: =VLOOKUP(A61,出库表!B:H,5,0) ->  | J61: =VLOOKUP(A61,出库表!B:H,7,0) -> 
B62: =VLOOKUP(A62,商品信息!A:E,2,0) ->  | C62: =VLOOKUP(A62,商品信息!A:E,3,0) ->  | F62: =VLOOKUP(A62,入库表!B:H,5,0) ->  | G62: =VLOOKUP(A62,入库表!B:H,7,0) ->  | I62: =VLOOKUP(A62,出库表!B:H,5,0) ->  | J62: =VLOOKUP(A62,出库表!B:H,7,0) -> 
B63: =VLOOKUP(A63,商品信息!A:E,2,0) ->  | C63: =VLOOKUP(A63,商品信息!A:E,3,0) ->  | F63: =VLOOKUP(A63,入库表!B:H,5,0) ->  | G63: =VLOOKUP(A63,入库表!B:H,7,0) ->  | I63: =VLOOKUP(A63,出库表!B:H,5,0) ->  | J63: =VLOOKUP(A63,出库表!B:H,7,0) -> 
B64: =VLOOKUP(A64,商品信息!A:E,2,0) ->  | C64: =VLOOKUP(A64,商品信息!A:E,3,0) ->  | F64: =VLOOKUP(A64,入库表!B:H,5,0) ->  | G64: =VLOOKUP(A64,入库表!B:H,7,0) ->  | I64: =VLOOKUP(A64,出库表!B:H,5,0) ->  | J64: =VLOOKUP(A64,出库表!B:H,7,0) -> 
B65: =VLOOKUP(A65,商品信息!A:E,2,0) ->  | C65: =VLOOKUP(A65,商品信息!A:E,3,0) ->  | F65: =VLOOKUP(A65,入库表!B:H,5,0) ->  | G65: =VLOOKUP(A65,入库表!B:H,7,0) ->  | I65: =VLOOKUP(A65,出库表!B:H,5,0) ->  | J65: =VLOOKUP(A65,出库表!B:H,7,0) -> 
B66: =VLOOKUP(A66,商品信息!A:E,2,0) ->  | C66: =VLOOKUP(A66,商品信息!A:E,3,0) ->  | F66: =VLOOKUP(A66,入库表!B:H,5,0) ->  | G66: =VLOOKUP(A66,入库表!B:H,7,0) ->  | I66: =VLOOKUP(A66,出库表!B:H,5,0) ->  | J66: =VLOOKUP(A66,出库表!B:H,7,0) -> 
B67: =VLOOKUP(A67,商品信息!A:E,2,0) ->  | C67: =VLOOKUP(A67,商品信息!A:E,3,0) ->  | F67: =VLOOKUP(A67,入库表!B:H,5,0) ->  | G67: =VLOOKUP(A67,入库表!B:H,7,0) ->  | H67: =F67*G67 ->  | I67: =VLOOKUP(A67,出库表!B:H,5,0) ->  | J67: =VLOOKUP(A67,出库表!B:H,7,0) -> 
B68: =VLOOKUP(A68,商品信息!A:E,2,0) ->  | C68: =VLOOKUP(A68,商品信息!A:E,3,0) ->  | F68: =VLOOKUP(A68,入库表!B:H,5,0) ->  | G68: =VLOOKUP(A68,入库表!B:H,7,0) ->  | I68: =VLOOKUP(A68,出库表!B:H,5,0) ->  | J68: =VLOOKUP(A68,出库表!B:H,7,0) ->  | K68: =I68*J68 ->  | L68: =F68-I68 ->  | M68: =I68*(J68-G68) -> 
B69: =VLOOKUP(A69,商品信息!A:E,2,0) ->  | C69: =VLOOKUP(A69,商品信息!A:E,3,0) ->  | F69: =VLOOKUP(A69,入库表!B:H,5,0) ->  | G69: =VLOOKUP(A69,入库表!B:H,7,0) ->  | I69: =VLOOKUP(A69,出库表!B:H,5,0) ->  | J69: =VLOOKUP(A69,出库表!B:H,7,0) -> 
B70: =VLOOKUP(A70,商品信息!A:E,2,0) ->  | C70: =VLOOKUP(A70,商品信息!A:E,3,0) ->  | F70: =VLOOKUP(A70,入库表!B:H,5,0) ->  | G70: =VLOOKUP(A70,入库表!B:H,7,0) ->  | I70: =VLOOKUP(A70,出库表!B:H,5,0) ->  | J70: =VLOOKUP(A70,出库表!B:H,7,0) -> 
B71: =VLOOKUP(A71,商品信息!A:E,2,0) ->  | C71: =VLOOKUP(A71,商品信息!A:E,3,0) ->  | F71: =VLOOKUP(A71,入库表!B:H,5,0) ->  | G71: =VLOOKUP(A71,入库表!B:H,7,0) ->  | I71: =VLOOKUP(A71,出库表!B:H,5,0) ->  | J71: =VLOOKUP(A71,出库表!B:H,7,0) -> 
B72: =VLOOKUP(A72,商品信息!A:E,2,0) ->  | C72: =VLOOKUP(A72,商品信息!A:E,3,0) ->  | F72: =VLOOKUP(A72,入库表!B:H,5,0) ->  | G72: =VLOOKUP(A72,入库表!B:H,7,0) ->  | I72: =VLOOKUP(A72,出库表!B:H,5,0) ->  | J72: =VLOOKUP(A72,出库表!B:H,7,0) -> 
B73: =VLOOKUP(A73,商品信息!A:E,2,0) ->  | C73: =VLOOKUP(A73,商品信息!A:E,3,0) ->  | F73: =VLOOKUP(A73,入库表!B:H,5,0) ->  | G73: =VLOOKUP(A73,入库表!B:H,7,0) ->  | I73: =VLOOKUP(A73,出库表!B:H,5,0) ->  | J73: =VLOOKUP(A73,出库表!B:H,7,0) -> 
B74: =VLOOKUP(A74,商品信息!A:E,2,0) ->  | C74: =VLOOKUP(A74,商品信息!A:E,3,0) ->  | F74: =VLOOKUP(A74,入库表!B:H,5,0) ->  | G74: =VLOOKUP(A74,入库表!B:H,7,0) ->  | I74: =VLOOKUP(A74,出库表!B:H,5,0) ->  | J74: =VLOOKUP(A74,出库表!B:H,7,0) -> 
B75: =VLOOKUP(A75,商品信息!A:E,2,0) ->  | C75: =VLOOKUP(A75,商品信息!A:E,3,0) ->  | F75: =VLOOKUP(A75,入库表!B:H,5,0) ->  | G75: =VLOOKUP(A75,入库表!B:H,7,0) ->  | I75: =VLOOKUP(A75,出库表!B:H,5,0) ->  | J75: =VLOOKUP(A75,出库表!B:H,7,0) -> 
B76: =VLOOKUP(A76,商品信息!A:E,2,0) ->  | C76: =VLOOKUP(A76,商品信息!A:E,3,0) ->  | F76: =VLOOKUP(A76,入库表!B:H,5,0) ->  | G76: =VLOOKUP(A76,入库表!B:H,7,0) ->  | I76: =VLOOKUP(A76,出库表!B:H,5,0) ->  | J76: =VLOOKUP(A76,出库表!B:H,7,0) -> 
B77: =VLOOKUP(A77,商品信息!A:E,2,0) ->  | C77: =VLOOKUP(A77,商品信息!A:E,3,0) ->  | F77: =VLOOKUP(A77,入库表!B:H,5,0) ->  | G77: =VLOOKUP(A77,入库表!B:H,7,0) ->  | I77: =VLOOKUP(A77,出库表!B:H,5,0) ->  | J77: =VLOOKUP(A77,出库表!B:H,7,0) -> 
B78: =VLOOKUP(A78,商品信息!A:E,2,0) ->  | C78: =VLOOKUP(A78,商品信息!A:E,3,0) ->  | F78: =VLOOKUP(A78,入库表!B:H,5,0) ->  | G78: =VLOOKUP(A78,入库表!B:H,7,0) ->  | I78: =VLOOKUP(A78,出库表!B:H,5,0) ->  | J78: =VLOOKUP(A78,出库表!B:H,7,0) -> 
B79: =VLOOKUP(A79,商品信息!A:E,2,0) ->  | C79: =VLOOKUP(A79,商品信息!A:E,3,0) ->  | F79: =VLOOKUP(A79,入库表!B:H,5,0) ->  | G79: =VLOOKUP(A79,入库表!B:H,7,0) ->  | I79: =VLOOKUP(A79,出库表!B:H,5,0) ->  | J79: =VLOOKUP(A79,出库表!B:H,7,0) -> 
B80: =VLOOKUP(A80,商品信息!A:E,2,0) ->  | C80: =VLOOKUP(A80,商品信息!A:E,3,0) ->  | F80: =VLOOKUP(A80,入库表!B:H,5,0) ->  | G80: =VLOOKUP(A80,入库表!B:H,7,0) ->  | I80: =VLOOKUP(A80,出库表!B:H,5,0) ->  | J80: =VLOOKUP(A80,出库表!B:H,7,0) -> 
B81: =VLOOKUP(A81,商品信息!A:E,2,0) ->  | C81: =VLOOKUP(A81,商品信息!A:E,3,0) ->  | F81: =VLOOKUP(A81,入库表!B:H,5,0) ->  | G81: =VLOOKUP(A81,入库表!B:H,7,0) ->  | I81: =VLOOKUP(A81,出库表!B:H,5,0) ->  | J81: =VLOOKUP(A81,出库表!B:H,7,0) -> 
B82: =VLOOKUP(A82,商品信息!A:E,2,0) ->  | C82: =VLOOKUP(A82,商品信息!A:E,3,0) ->  | F82: =VLOOKUP(A82,入库表!B:H,5,0) ->  | G82: =VLOOKUP(A82,入库表!B:H,7,0) ->  | I82: =VLOOKUP(A82,出库表!B:H,5,0) ->  | J82: =VLOOKUP(A82,出库表!B:H,7,0) -> 
B83: =VLOOKUP(A83,商品信息!A:E,2,0) ->  | C83: =VLOOKUP(A83,商品信息!A:E,3,0) ->  | F83: =VLOOKUP(A83,入库表!B:H,5,0) ->  | G83: =VLOOKUP(A83,入库表!B:H,7,0) ->  | I83: =VLOOKUP(A83,出库表!B:H,5,0) ->  | J83: =VLOOKUP(A83,出库表!B:H,7,0) -> 
B84: =VLOOKUP(A84,商品信息!A:E,2,0) ->  | C84: =VLOOKUP(A84,商品信息!A:E,3,0) ->  | F84: =VLOOKUP(A84,入库表!B:H,5,0) ->  | G84: =VLOOKUP(A84,入库表!B:H,7,0) ->  | I84: =VLOOKUP(A84,出库表!B:H,5,0) ->  | J84: =VLOOKUP(A84,出库表!B:H,7,0) -> 
B85: =VLOOKUP(A85,商品信息!A:E,2,0) ->  | C85: =VLOOKUP(A85,商品信息!A:E,3,0) ->  | F85: =VLOOKUP(A85,入库表!B:H,5,0) ->  | G85: =VLOOKUP(A85,入库表!B:H,7,0) ->  | I85: =VLOOKUP(A85,出库表!B:H,5,0) ->  | J85: =VLOOKUP(A85,出库表!B:H,7,0) -> 
B86: =VLOOKUP(A86,商品信息!A:E,2,0) ->  | C86: =VLOOKUP(A86,商品信息!A:E,3,0) ->  | F86: =VLOOKUP(A86,入库表!B:H,5,0) ->  | G86: =VLOOKUP(A86,入库表!B:H,7,0) ->  | I86: =VLOOKUP(A86,出库表!B:H,5,0) ->  | J86: =VLOOKUP(A86,出库表!B:H,7,0) -> 
B87: =VLOOKUP(A87,商品信息!A:E,2,0) ->  | C87: =VLOOKUP(A87,商品信息!A:E,3,0) ->  | F87: =VLOOKUP(A87,入库表!B:H,5,0) ->  | G87: =VLOOKUP(A87,入库表!B:H,7,0) ->  | I87: =VLOOKUP(A87,出库表!B:H,5,0) ->  | J87: =VLOOKUP(A87,出库表!B:H,7,0) -> 
B88: =VLOOKUP(A88,商品信息!A:E,2,0) ->  | C88: =VLOOKUP(A88,商品信息!A:E,3,0) ->  | F88: =VLOOKUP(A88,入库表!B:H,5,0) ->  | G88: =VLOOKUP(A88,入库表!B:H,7,0) ->  | I88: =VLOOKUP(A88,出库表!B:H,5,0) ->  | J88: =VLOOKUP(A88,出库表!B:H,7,0) -> 
B89: =VLOOKUP(A89,商品信息!A:E,2,0) ->  | C89: =VLOOKUP(A89,商品信息!A:E,3,0) ->  | F89: =VLOOKUP(A89,入库表!B:H,5,0) ->  | G89: =VLOOKUP(A89,入库表!B:H,7,0) ->  | I89: =VLOOKUP(A89,出库表!B:H,5,0) ->  | J89: =VLOOKUP(A89,出库表!B:H,7,0) -> 
B90: =VLOOKUP(A90,商品信息!A:E,2,0) ->  | C90: =VLOOKUP(A90,商品信息!A:E,3,0) ->  | F90: =VLOOKUP(A90,入库表!B:H,5,0) ->  | G90: =VLOOKUP(A90,入库表!B:H,7,0) ->  | I90: =VLOOKUP(A90,出库表!B:H,5,0) ->  | J90: =VLOOKUP(A90,出库表!B:H,7,0) -> 
B91: =VLOOKUP(A91,商品信息!A:E,2,0) ->  | C91: =VLOOKUP(A91,商品信息!A:E,3,0) ->  | F91: =VLOOKUP(A91,入库表!B:H,5,0) ->  | G91: =VLOOKUP(A91,入库表!B:H,7,0) ->  | I91: =VLOOKUP(A91,出库表!B:H,5,0) ->  | J91: =VLOOKUP(A91,出库表!B:H,7,0) -> 
B92: =VLOOKUP(A92,商品信息!A:E,2,0) ->  | C92: =VLOOKUP(A92,商品信息!A:E,3,0) ->  | F92: =VLOOKUP(A92,入库表!B:H,5,0) ->  | G92: =VLOOKUP(A92,入库表!B:H,7,0) ->  | I92: =VLOOKUP(A92,出库表!B:H,5,0) ->  | J92: =VLOOKUP(A92,出库表!B:H,7,0) -> 
B93: =VLOOKUP(A93,商品信息!A:E,2,0) ->  | C93: =VLOOKUP(A93,商品信息!A:E,3,0) ->  | F93: =VLOOKUP(A93,入库表!B:H,5,0) ->  | G93: =VLOOKUP(A93,入库表!B:H,7,0) ->  | I93: =VLOOKUP(A93,出库表!B:H,5,0) ->  | J93: =VLOOKUP(A93,出库表!B:H,7,0) -> 
B94: =VLOOKUP(A94,商品信息!A:E,2,0) ->  | C94: =VLOOKUP(A94,商品信息!A:E,3,0) ->  | F94: =VLOOKUP(A94,入库表!B:H,5,0) ->  | G94: =VLOOKUP(A94,入库表!B:H,7,0) ->  | I94: =VLOOKUP(A94,出库表!B:H,5,0) ->  | J94: =VLOOKUP(A94,出库表!B:H,7,0) -> 
B95: =VLOOKUP(A95,商品信息!A:E,2,0) ->  | C95: =VLOOKUP(A95,商品信息!A:E,3,0) ->  | F95: =VLOOKUP(A95,入库表!B:H,5,0) ->  | G95: =VLOOKUP(A95,入库表!B:H,7,0) ->  | I95: =VLOOKUP(A95,出库表!B:H,5,0) ->  | J95: =VLOOKUP(A95,出库表!B:H,7,0) -> 
B96: =VLOOKUP(A96,商品信息!A:E,2,0) ->  | C96: =VLOOKUP(A96,商品信息!A:E,3,0) ->  | F96: =VLOOKUP(A96,入库表!B:H,5,0) ->  | G96: =VLOOKUP(A96,入库表!B:H,7,0) ->  | I96: =VLOOKUP(A96,出库表!B:H,5,0) ->  | J96: =VLOOKUP(A96,出库表!B:H,7,0) -> 
B97: =VLOOKUP(A97,商品信息!A:E,2,0) ->  | C97: =VLOOKUP(A97,商品信息!A:E,3,0) ->  | F97: =VLOOKUP(A97,入库表!B:H,5,0) ->  | G97: =VLOOKUP(A97,入库表!B:H,7,0) ->  | I97: =VLOOKUP(A97,出库表!B:H,5,0) ->  | J97: =VLOOKUP(A97,出库表!B:H,7,0) -> 
B98: =VLOOKUP(A98,商品信息!A:E,2,0) ->  | C98: =VLOOKUP(A98,商品信息!A:E,3,0) ->  | F98: =VLOOKUP(A98,入库表!B:H,5,0) ->  | G98: =VLOOKUP(A98,入库表!B:H,7,0) ->  | I98: =VLOOKUP(A98,出库表!B:H,5,0) ->  | J98: =VLOOKUP(A98,出库表!B:H,7,0) -> 
B99: =VLOOKUP(A99,商品信息!A:E,2,0) ->  | C99: =VLOOKUP(A99,商品信息!A:E,3,0) ->  | F99: =VLOOKUP(A99,入库表!B:H,5,0) ->  | G99: =VLOOKUP(A99,入库表!B:H,7,0) ->  | I99: =VLOOKUP(A99,出库表!B:H,5,0) ->  | J99: =VLOOKUP(A99,出库表!B:H,7,0) -> 
B100: =VLOOKUP(A100,商品信息!A:E,2,0) ->  | C100: =VLOOKUP(A100,商品信息!A:E,3,0) ->  | F100: =VLOOKUP(A100,入库表!B:H,5,0) ->  | G100: =VLOOKUP(A100,入库表!B:H,7,0) ->  | I100: =VLOOKUP(A100,出库表!B:H,5,0) ->  | J100: =VLOOKUP(A100,出库表!B:H,7,0) -> 
B101: =VLOOKUP(A101,商品信息!A:E,2,0) ->  | C101: =VLOOKUP(A101,商品信息!A:E,3,0) ->  | F101: =VLOOKUP(A101,入库表!B:H,5,0) ->  | G101: =VLOOKUP(A101,入库表!B:H,7,0) ->  | I101: =VLOOKUP(A101,出库表!B:H,5,0) ->  | J101: =VLOOKUP(A101,出库表!B:H,7,0) -> 
B102: =VLOOKUP(A102,商品信息!A:E,2,0) ->  | C102: =VLOOKUP(A102,商品信息!A:E,3,0) ->  | F102: =VLOOKUP(A102,入库表!B:H,5,0) ->  | G102: =VLOOKUP(A102,入库表!B:H,7,0) ->  | I102: =VLOOKUP(A102,出库表!B:H,5,0) ->  | J102: =VLOOKUP(A102,出库表!B:H,7,0) -> 
B103: =VLOOKUP(A103,商品信息!A:E,2,0) ->  | C103: =VLOOKUP(A103,商品信息!A:E,3,0) ->  | F103: =VLOOKUP(A103,入库表!B:H,5,0) ->  | G103: =VLOOKUP(A103,入库表!B:H,7,0) ->  | I103: =VLOOKUP(A103,出库表!B:H,5,0) ->  | J103: =VLOOKUP(A103,出库表!B:H,7,0) -> 
B104: =VLOOKUP(A104,商品信息!A:E,2,0) ->  | C104: =VLOOKUP(A104,商品信息!A:E,3,0) ->  | F104: =VLOOKUP(A104,入库表!B:H,5,0) ->  | G104: =VLOOKUP(A104,入库表!B:H,7,0) ->  | I104: =VLOOKUP(A104,出库表!B:H,5,0) ->  | J104: =VLOOKUP(A104,出库表!B:H,7,0) -> 
B105: =VLOOKUP(A105,商品信息!A:E,2,0) ->  | C105: =VLOOKUP(A105,商品信息!A:E,3,0) ->  | F105: =VLOOKUP(A105,入库表!B:H,5,0) ->  | G105: =VLOOKUP(A105,入库表!B:H,7,0) ->  | I105: =VLOOKUP(A105,出库表!B:H,5,0) ->  | J105: =VLOOKUP(A105,出库表!B:H,7,0) -> 
B106: =VLOOKUP(A106,商品信息!A:E,2,0) ->  | C106: =VLOOKUP(A106,商品信息!A:E,3,0) ->  | F106: =VLOOKUP(A106,入库表!B:H,5,0) ->  | G106: =VLOOKUP(A106,入库表!B:H,7,0) ->  | I106: =VLOOKUP(A106,出库表!B:H,5,0) ->  | J106: =VLOOKUP(A106,出库表!B:H,7,0) -> 
B107: =VLOOKUP(A107,商品信息!A:E,2,0) ->  | C107: =VLOOKUP(A107,商品信息!A:E,3,0) ->  | F107: =VLOOKUP(A107,入库表!B:H,5,0) ->  | G107: =VLOOKUP(A107,入库表!B:H,7,0) ->  | I107: =VLOOKUP(A107,出库表!B:H,5,0) ->  | J107: =VLOOKUP(A107,出库表!B:H,7,0) -> 
B108: =VLOOKUP(A108,商品信息!A:E,2,0) ->  | C108: =VLOOKUP(A108,商品信息!A:E,3,0) ->  | F108: =VLOOKUP(A108,入库表!B:H,5,0) ->  | G108: =VLOOKUP(A108,入库表!B:H,7,0) ->  | I108: =VLOOKUP(A108,出库表!B:H,5,0) ->  | J108: =VLOOKUP(A108,出库表!B:H,7,0) -> 
B109: =VLOOKUP(A109,商品信息!A:E,2,0) ->  | C109: =VLOOKUP(A109,商品信息!A:E,3,0) ->  | F109: =VLOOKUP(A109,入库表!B:H,5,0) ->  | G109: =VLOOKUP(A109,入库表!B:H,7,0) ->  | I109: =VLOOKUP(A109,出库表!B:H,5,0) ->  | J109: =VLOOKUP(A109,出库表!B:H,7,0) -> 
B110: =VLOOKUP(A110,商品信息!A:E,2,0) ->  | C110: =VLOOKUP(A110,商品信息!A:E,3,0) ->  | F110: =VLOOKUP(A110,入库表!B:H,5,0) ->  | G110: =VLOOKUP(A110,入库表!B:H,7,0) ->  | I110: =VLOOKUP(A110,出库表!B:H,5,0) ->  | J110: =VLOOKUP(A110,出库表!B:H,7,0) -> 
B111: =VLOOKUP(A111,商品信息!A:E,2,0) ->  | C111: =VLOOKUP(A111,商品信息!A:E,3,0) ->  | F111: =VLOOKUP(A111,入库表!B:H,5,0) ->  | G111: =VLOOKUP(A111,入库表!B:H,7,0) ->  | I111: =VLOOKUP(A111,出库表!B:H,5,0) ->  | J111: =VLOOKUP(A111,出库表!B:H,7,0) -> 
B112: =VLOOKUP(A112,商品信息!A:E,2,0) ->  | C112: =VLOOKUP(A112,商品信息!A:E,3,0) ->  | F112: =VLOOKUP(A112,入库表!B:H,5,0) ->  | G112: =VLOOKUP(A112,入库表!B:H,7,0) ->  | I112: =VLOOKUP(A112,出库表!B:H,5,0) ->  | J112: =VLOOKUP(A112,出库表!B:H,7,0) -> 
B113: =VLOOKUP(A113,商品信息!A:E,2,0) ->  | C113: =VLOOKUP(A113,商品信息!A:E,3,0) ->  | F113: =VLOOKUP(A113,入库表!B:H,5,0) ->  | G113: =VLOOKUP(A113,入库表!B:H,7,0) ->  | I113: =VLOOKUP(A113,出库表!B:H,5,0) ->  | J113: =VLOOKUP(A113,出库表!B:H,7,0) -> 
B114: =VLOOKUP(A114,商品信息!A:E,2,0) ->  | C114: =VLOOKUP(A114,商品信息!A:E,3,0) ->  | F114: =VLOOKUP(A114,入库表!B:H,5,0) ->  | G114: =VLOOKUP(A114,入库表!B:H,7,0) ->  | I114: =VLOOKUP(A114,出库表!B:H,5,0) ->  | J114: =VLOOKUP(A114,出库表!B:H,7,0) -> 
B115: =VLOOKUP(A115,商品信息!A:E,2,0) ->  | C115: =VLOOKUP(A115,商品信息!A:E,3,0) ->  | F115: =VLOOKUP(A115,入库表!B:H,5,0) ->  | G115: =VLOOKUP(A115,入库表!B:H,7,0) ->  | I115: =VLOOKUP(A115,出库表!B:H,5,0) ->  | J115: =VLOOKUP(A115,出库表!B:H,7,0) -> 
B116: =VLOOKUP(A116,商品信息!A:E,2,0) ->  | C116: =VLOOKUP(A116,商品信息!A:E,3,0) ->  | F116: =VLOOKUP(A116,入库表!B:H,5,0) ->  | G116: =VLOOKUP(A116,入库表!B:H,7,0) ->  | I116: =VLOOKUP(A116,出库表!B:H,5,0) ->  | J116: =VLOOKUP(A116,出库表!B:H,7,0) -> 
B117: =VLOOKUP(A117,商品信息!A:E,2,0) ->  | C117: =VLOOKUP(A117,商品信息!A:E,3,0) ->  | F117: =VLOOKUP(A117,入库表!B:H,5,0) ->  | G117: =VLOOKUP(A117,入库表!B:H,7,0) ->  | I117: =VLOOKUP(A117,出库表!B:H,5,0) ->  | J117: =VLOOKUP(A117,出库表!B:H,7,0) -> 
B118: =VLOOKUP(A118,商品信息!A:E,2,0) ->  | C118: =VLOOKUP(A118,商品信息!A:E,3,0) ->  | F118: =VLOOKUP(A118,入库表!B:H,5,0) ->  | G118: =VLOOKUP(A118,入库表!B:H,7,0) ->  | I118: =VLOOKUP(A118,出库表!B:H,5,0) ->  | J118: =VLOOKUP(A118,出库表!B:H,7,0) -> 
B119: =VLOOKUP(A119,商品信息!A:E,2,0) ->  | C119: =VLOOKUP(A119,商品信息!A:E,3,0) ->  | F119: =VLOOKUP(A119,入库表!B:H,5,0) ->  | G119: =VLOOKUP(A119,入库表!B:H,7,0) ->  | I119: =VLOOKUP(A119,出库表!B:H,5,0) ->  | J119: =VLOOKUP(A119,出库表!B:H,7,0) -> 
B120: =VLOOKUP(A120,商品信息!A:E,2,0) ->  | C120: =VLOOKUP(A120,商品信息!A:E,3,0) ->  | F120: =VLOOKUP(A120,入库表!B:H,5,0) ->  | G120: =VLOOKUP(A120,入库表!B:H,7,0) ->  | I120: =VLOOKUP(A120,出库表!B:H,5,0) ->  | J120: =VLOOKUP(A120,出库表!B:H,7,0) -> 
B121: =VLOOKUP(A121,商品信息!A:E,2,0) ->  | C121: =VLOOKUP(A121,商品信息!A:E,3,0) ->  | F121: =VLOOKUP(A121,入库表!B:H,5,0) ->  | G121: =VLOOKUP(A121,入库表!B:H,7,0) ->  | I121: =VLOOKUP(A121,出库表!B:H,5,0) ->  | J121: =VLOOKUP(A121,出库表!B:H,7,0) -> 
B122: =VLOOKUP(A122,商品信息!A:E,2,0) ->  | C122: =VLOOKUP(A122,商品信息!A:E,3,0) ->  | F122: =VLOOKUP(A122,入库表!B:H,5,0) ->  | G122: =VLOOKUP(A122,入库表!B:H,7,0) ->  | I122: =VLOOKUP(A122,出库表!B:H,5,0) ->  | J122: =VLOOKUP(A122,出库表!B:H,7,0) -> 
B123: =VLOOKUP(A123,商品信息!A:E,2,0) ->  | C123: =VLOOKUP(A123,商品信息!A:E,3,0) ->  | F123: =VLOOKUP(A123,入库表!B:H,5,0) ->  | G123: =VLOOKUP(A123,入库表!B:H,7,0) ->  | I123: =VLOOKUP(A123,出库表!B:H,5,0) ->  | J123: =VLOOKUP(A123,出库表!B:H,7,0) -> 
B124: =VLOOKUP(A124,商品信息!A:E,2,0) ->  | C124: =VLOOKUP(A124,商品信息!A:E,3,0) ->  | F124: =VLOOKUP(A124,入库表!B:H,5,0) ->  | G124: =VLOOKUP(A124,入库表!B:H,7,0) ->  | I124: =VLOOKUP(A124,出库表!B:H,5,0) ->  | J124: =VLOOKUP(A124,出库表!B:H,7,0) -> 
B125: =VLOOKUP(A125,商品信息!A:E,2,0) ->  | C125: =VLOOKUP(A125,商品信息!A:E,3,0) ->  | F125: =VLOOKUP(A125,入库表!B:H,5,0) ->  | G125: =VLOOKUP(A125,入库表!B:H,7,0) ->  | I125: =VLOOKUP(A125,出库表!B:H,5,0) ->  | J125: =VLOOKUP(A125,出库表!B:H,7,0) -> 
B126: =VLOOKUP(A126,商品信息!A:E,2,0) ->  | C126: =VLOOKUP(A126,商品信息!A:E,3,0) ->  | F126: =VLOOKUP(A126,入库表!B:H,5,0) ->  | G126: =VLOOKUP(A126,入库表!B:H,7,0) ->  | I126: =VLOOKUP(A126,出库表!B:H,5,0) ->  | J126: =VLOOKUP(A126,出库表!B:H,7,0) -> 
B127: =VLOOKUP(A127,商品信息!A:E,2,0) ->  | C127: =VLOOKUP(A127,商品信息!A:E,3,0) ->  | F127: =VLOOKUP(A127,入库表!B:H,5,0) ->  | G127: =VLOOKUP(A127,入库表!B:H,7,0) ->  | I127: =VLOOKUP(A127,出库表!B:H,5,0) ->  | J127: =VLOOKUP(A127,出库表!B:H,7,0) -> 
B128: =VLOOKUP(A128,商品信息!A:E,2,0) ->  | C128: =VLOOKUP(A128,商品信息!A:E,3,0) ->  | F128: =VLOOKUP(A128,入库表!B:H,5,0) ->  | G128: =VLOOKUP(A128,入库表!B:H,7,0) ->  | I128: =VLOOKUP(A128,出库表!B:H,5,0) ->  | J128: =VLOOKUP(A128,出库表!B:H,7,0) -> 
B129: =VLOOKUP(A129,商品信息!A:E,2,0) ->  | C129: =VLOOKUP(A129,商品信息!A:E,3,0) ->  | F129: =VLOOKUP(A129,入库表!B:H,5,0) ->  | G129: =VLOOKUP(A129,入库表!B:H,7,0) ->  | I129: =VLOOKUP(A129,出库表!B:H,5,0) ->  | J129: =VLOOKUP(A129,出库表!B:H,7,0) -> 
B130: =VLOOKUP(A130,商品信息!A:E,2,0) ->  | C130: =VLOOKUP(A130,商品信息!A:E,3,0) ->  | F130: =VLOOKUP(A130,入库表!B:H,5,0) ->  | G130: =VLOOKUP(A130,入库表!B:H,7,0) ->  | I130: =VLOOKUP(A130,出库表!B:H,5,0) ->  | J130: =VLOOKUP(A130,出库表!B:H,7,0) -> 
B131: =VLOOKUP(A131,商品信息!A:E,2,0) ->  | C131: =VLOOKUP(A131,商品信息!A:E,3,0) ->  | F131: =VLOOKUP(A131,入库表!B:H,5,0) ->  | G131: =VLOOKUP(A131,入库表!B:H,7,0) ->  | H131: =F131*G131 ->  | I131: =VLOOKUP(A131,出库表!B:H,5,0) ->  | J131: =VLOOKUP(A131,出库表!B:H,7,0) -> 
B132: =VLOOKUP(A132,商品信息!A:E,2,0) ->  | C132: =VLOOKUP(A132,商品信息!A:E,3,0) ->  | F132: =VLOOKUP(A132,入库表!B:H,5,0) ->  | G132: =VLOOKUP(A132,入库表!B:H,7,0) ->  | I132: =VLOOKUP(A132,出库表!B:H,5,0) ->  | J132: =VLOOKUP(A132,出库表!B:H,7,0) ->  | K132: =I132*J132 ->  | L132: =F132-I132 ->  | M132: =I132*(J132-G132) -> 
B133: =VLOOKUP(A133,商品信息!A:E,2,0) ->  | C133: =VLOOKUP(A133,商品信息!A:E,3,0) ->  | F133: =VLOOKUP(A133,入库表!B:H,5,0) ->  | G133: =VLOOKUP(A133,入库表!B:H,7,0) ->  | I133: =VLOOKUP(A133,出库表!B:H,5,0) ->  | J133: =VLOOKUP(A133,出库表!B:H,7,0) -> 
B134: =VLOOKUP(A134,商品信息!A:E,2,0) ->  | C134: =VLOOKUP(A134,商品信息!A:E,3,0) ->  | F134: =VLOOKUP(A134,入库表!B:H,5,0) ->  | G134: =VLOOKUP(A134,入库表!B:H,7,0) ->  | I134: =VLOOKUP(A134,出库表!B:H,5,0) ->  | J134: =VLOOKUP(A134,出库表!B:H,7,0) -> 
B135: =VLOOKUP(A135,商品信息!A:E,2,0) ->  | C135: =VLOOKUP(A135,商品信息!A:E,3,0) ->  | F135: =VLOOKUP(A135,入库表!B:H,5,0) ->  | G135: =VLOOKUP(A135,入库表!B:H,7,0) ->  | I135: =VLOOKUP(A135,出库表!B:H,5,0) ->  | J135: =VLOOKUP(A135,出库表!B:H,7,0) -> 
B136: =VLOOKUP(A136,商品信息!A:E,2,0) ->  | C136: =VLOOKUP(A136,商品信息!A:E,3,0) ->  | F136: =VLOOKUP(A136,入库表!B:H,5,0) ->  | G136: =VLOOKUP(A136,入库表!B:H,7,0) ->  | I136: =VLOOKUP(A136,出库表!B:H,5,0) ->  | J136: =VLOOKUP(A136,出库表!B:H,7,0) -> 
B137: =VLOOKUP(A137,商品信息!A:E,2,0) ->  | C137: =VLOOKUP(A137,商品信息!A:E,3,0) ->  | F137: =VLOOKUP(A137,入库表!B:H,5,0) ->  | G137: =VLOOKUP(A137,入库表!B:H,7,0) ->  | I137: =VLOOKUP(A137,出库表!B:H,5,0) ->  | J137: =VLOOKUP(A137,出库表!B:H,7,0) -> 
B138: =VLOOKUP(A138,商品信息!A:E,2,0) ->  | C138: =VLOOKUP(A138,商品信息!A:E,3,0) ->  | F138: =VLOOKUP(A138,入库表!B:H,5,0) ->  | G138: =VLOOKUP(A138,入库表!B:H,7,0) ->  | I138: =VLOOKUP(A138,出库表!B:H,5,0) ->  | J138: =VLOOKUP(A138,出库表!B:H,7,0) -> 
B139: =VLOOKUP(A139,商品信息!A:E,2,0) ->  | C139: =VLOOKUP(A139,商品信息!A:E,3,0) ->  | F139: =VLOOKUP(A139,入库表!B:H,5,0) ->  | G139: =VLOOKUP(A139,入库表!B:H,7,0) ->  | I139: =VLOOKUP(A139,出库表!B:H,5,0) ->  | J139: =VLOOKUP(A139,出库表!B:H,7,0) -> 
B140: =VLOOKUP(A140,商品信息!A:E,2,0) ->  | C140: =VLOOKUP(A140,商品信息!A:E,3,0) ->  | F140: =VLOOKUP(A140,入库表!B:H,5,0) ->  | G140: =VLOOKUP(A140,入库表!B:H,7,0) ->  | I140: =VLOOKUP(A140,出库表!B:H,5,0) ->  | J140: =VLOOKUP(A140,出库表!B:H,7,0) -> 
B141: =VLOOKUP(A141,商品信息!A:E,2,0) ->  | C141: =VLOOKUP(A141,商品信息!A:E,3,0) ->  | F141: =VLOOKUP(A141,入库表!B:H,5,0) ->  | G141: =VLOOKUP(A141,入库表!B:H,7,0) ->  | I141: =VLOOKUP(A141,出库表!B:H,5,0) ->  | J141: =VLOOKUP(A141,出库表!B:H,7,0) -> 
B142: =VLOOKUP(A142,商品信息!A:E,2,0) ->  | C142: =VLOOKUP(A142,商品信息!A:E,3,0) ->  | F142: =VLOOKUP(A142,入库表!B:H,5,0) ->  | G142: =VLOOKUP(A142,入库表!B:H,7,0) ->  | I142: =VLOOKUP(A142,出库表!B:H,5,0) ->  | J142: =VLOOKUP(A142,出库表!B:H,7,0) -> 
B143: =VLOOKUP(A143,商品信息!A:E,2,0) ->  | C143: =VLOOKUP(A143,商品信息!A:E,3,0) ->  | F143: =VLOOKUP(A143,入库表!B:H,5,0) ->  | G143: =VLOOKUP(A143,入库表!B:H,7,0) ->  | I143: =VLOOKUP(A143,出库表!B:H,5,0) ->  | J143: =VLOOKUP(A143,出库表!B:H,7,0) -> 
B144: =VLOOKUP(A144,商品信息!A:E,2,0) ->  | C144: =VLOOKUP(A144,商品信息!A:E,3,0) ->  | F144: =VLOOKUP(A144,入库表!B:H,5,0) ->  | G144: =VLOOKUP(A144,入库表!B:H,7,0) ->  | I144: =VLOOKUP(A144,出库表!B:H,5,0) ->  | J144: =VLOOKUP(A144,出库表!B:H,7,0) -> 
B145: =VLOOKUP(A145,商品信息!A:E,2,0) ->  | C145: =VLOOKUP(A145,商品信息!A:E,3,0) ->  | F145: =VLOOKUP(A145,入库表!B:H,5,0) ->  | G145: =VLOOKUP(A145,入库表!B:H,7,0) ->  | I145: =VLOOKUP(A145,出库表!B:H,5,0) ->  | J145: =VLOOKUP(A145,出库表!B:H,7,0) -> 
B146: =VLOOKUP(A146,商品信息!A:E,2,0) ->  | C146: =VLOOKUP(A146,商品信息!A:E,3,0) ->  | F146: =VLOOKUP(A146,入库表!B:H,5,0) ->  | G146: =VLOOKUP(A146,入库表!B:H,7,0) ->  | I146: =VLOOKUP(A146,出库表!B:H,5,0) ->  | J146: =VLOOKUP(A146,出库表!B:H,7,0) -> 
B147: =VLOOKUP(A147,商品信息!A:E,2,0) ->  | C147: =VLOOKUP(A147,商品信息!A:E,3,0) ->  | F147: =VLOOKUP(A147,入库表!B:H,5,0) ->  | G147: =VLOOKUP(A147,入库表!B:H,7,0) ->  | I147: =VLOOKUP(A147,出库表!B:H,5,0) ->  | J147: =VLOOKUP(A147,出库表!B:H,7,0) -> 
B148: =VLOOKUP(A148,商品信息!A:E,2,0) ->  | C148: =VLOOKUP(A148,商品信息!A:E,3,0) ->  | F148: =VLOOKUP(A148,入库表!B:H,5,0) ->  | G148: =VLOOKUP(A148,入库表!B:H,7,0) ->  | I148: =VLOOKUP(A148,出库表!B:H,5,0) ->  | J148: =VLOOKUP(A148,出库表!B:H,7,0) -> 
B149: =VLOOKUP(A149,商品信息!A:E,2,0) ->  | C149: =VLOOKUP(A149,商品信息!A:E,3,0) ->  | F149: =VLOOKUP(A149,入库表!B:H,5,0) ->  | G149: =VLOOKUP(A149,入库表!B:H,7,0) ->  | I149: =VLOOKUP(A149,出库表!B:H,5,0) ->  | J149: =VLOOKUP(A149,出库表!B:H,7,0) -> 
B150: =VLOOKUP(A150,商品信息!A:E,2,0) ->  | C150: =VLOOKUP(A150,商品信息!A:E,3,0) ->  | F150: =VLOOKUP(A150,入库表!B:H,5,0) ->  | G150: =VLOOKUP(A150,入库表!B:H,7,0) ->  | I150: =VLOOKUP(A150,出库表!B:H,5,0) ->  | J150: =VLOOKUP(A150,出库表!B:H,7,0) -> 
B151: =VLOOKUP(A151,商品信息!A:E,2,0) ->  | C151: =VLOOKUP(A151,商品信息!A:E,3,0) ->  | F151: =VLOOKUP(A151,入库表!B:H,5,0) ->  | G151: =VLOOKUP(A151,入库表!B:H,7,0) ->  | I151: =VLOOKUP(A151,出库表!B:H,5,0) ->  | J151: =VLOOKUP(A151,出库表!B:H,7,0) -> 
B152: =VLOOKUP(A152,商品信息!A:E,2,0) ->  | C152: =VLOOKUP(A152,商品信息!A:E,3,0) ->  | F152: =VLOOKUP(A152,入库表!B:H,5,0) ->  | G152: =VLOOKUP(A152,入库表!B:H,7,0) ->  | I152: =VLOOKUP(A152,出库表!B:H,5,0) ->  | J152: =VLOOKUP(A152,出库表!B:H,7,0) -> 
B153: =VLOOKUP(A153,商品信息!A:E,2,0) ->  | C153: =VLOOKUP(A153,商品信息!A:E,3,0) ->  | F153: =VLOOKUP(A153,入库表!B:H,5,0) ->  | G153: =VLOOKUP(A153,入库表!B:H,7,0) ->  | I153: =VLOOKUP(A153,出库表!B:H,5,0) ->  | J153: =VLOOKUP(A153,出库表!B:H,7,0) -> 
B154: =VLOOKUP(A154,商品信息!A:E,2,0) ->  | C154: =VLOOKUP(A154,商品信息!A:E,3,0) ->  | F154: =VLOOKUP(A154,入库表!B:H,5,0) ->  | G154: =VLOOKUP(A154,入库表!B:H,7,0) ->  | I154: =VLOOKUP(A154,出库表!B:H,5,0) ->  | J154: =VLOOKUP(A154,出库表!B:H,7,0) -> 
B155: =VLOOKUP(A155,商品信息!A:E,2,0) ->  | C155: =VLOOKUP(A155,商品信息!A:E,3,0) ->  | F155: =VLOOKUP(A155,入库表!B:H,5,0) ->  | G155: =VLOOKUP(A155,入库表!B:H,7,0) ->  | I155: =VLOOKUP(A155,出库表!B:H,5,0) ->  | J155: =VLOOKUP(A155,出库表!B:H,7,0) -> 
B156: =VLOOKUP(A156,商品信息!A:E,2,0) ->  | C156: =VLOOKUP(A156,商品信息!A:E,3,0) ->  | F156: =VLOOKUP(A156,入库表!B:H,5,0) ->  | G156: =VLOOKUP(A156,入库表!B:H,7,0) ->  | I156: =VLOOKUP(A156,出库表!B:H,5,0) ->  | J156: =VLOOKUP(A156,出库表!B:H,7,0) -> 
B157: =VLOOKUP(A157,商品信息!A:E,2,0) ->  | C157: =VLOOKUP(A157,商品信息!A:E,3,0) ->  | F157: =VLOOKUP(A157,入库表!B:H,5,0) ->  | G157: =VLOOKUP(A157,入库表!B:H,7,0) ->  | I157: =VLOOKUP(A157,出库表!B:H,5,0) ->  | J157: =VLOOKUP(A157,出库表!B:H,7,0) -> 
B158: =VLOOKUP(A158,商品信息!A:E,2,0) ->  | C158: =VLOOKUP(A158,商品信息!A:E,3,0) ->  | F158: =VLOOKUP(A158,入库表!B:H,5,0) ->  | G158: =VLOOKUP(A158,入库表!B:H,7,0) ->  | I158: =VLOOKUP(A158,出库表!B:H,5,0) ->  | J158: =VLOOKUP(A158,出库表!B:H,7,0) -> 
B159: =VLOOKUP(A159,商品信息!A:E,2,0) ->  | C159: =VLOOKUP(A159,商品信息!A:E,3,0) ->  | F159: =VLOOKUP(A159,入库表!B:H,5,0) ->  | G159: =VLOOKUP(A159,入库表!B:H,7,0) ->  | I159: =VLOOKUP(A159,出库表!B:H,5,0) ->  | J159: =VLOOKUP(A159,出库表!B:H,7,0) -> 
B160: =VLOOKUP(A160,商品信息!A:E,2,0) ->  | C160: =VLOOKUP(A160,商品信息!A:E,3,0) ->  | F160: =VLOOKUP(A160,入库表!B:H,5,0) ->  | G160: =VLOOKUP(A160,入库表!B:H,7,0) ->  | I160: =VLOOKUP(A160,出库表!B:H,5,0) ->  | J160: =VLOOKUP(A160,出库表!B:H,7,0) -> 
B161: =VLOOKUP(A161,商品信息!A:E,2,0) ->  | C161: =VLOOKUP(A161,商品信息!A:E,3,0) ->  | F161: =VLOOKUP(A161,入库表!B:H,5,0) ->  | G161: =VLOOKUP(A161,入库表!B:H,7,0) ->  | I161: =VLOOKUP(A161,出库表!B:H,5,0) ->  | J161: =VLOOKUP(A161,出库表!B:H,7,0) -> 
B162: =VLOOKUP(A162,商品信息!A:E,2,0) ->  | C162: =VLOOKUP(A162,商品信息!A:E,3,0) ->  | F162: =VLOOKUP(A162,入库表!B:H,5,0) ->  | G162: =VLOOKUP(A162,入库表!B:H,7,0) ->  | I162: =VLOOKUP(A162,出库表!B:H,5,0) ->  | J162: =VLOOKUP(A162,出库表!B:H,7,0) -> 
B163: =VLOOKUP(A163,商品信息!A:E,2,0) ->  | C163: =VLOOKUP(A163,商品信息!A:E,3,0) ->  | F163: =VLOOKUP(A163,入库表!B:H,5,0) ->  | G163: =VLOOKUP(A163,入库表!B:H,7,0) ->  | I163: =VLOOKUP(A163,出库表!B:H,5,0) ->  | J163: =VLOOKUP(A163,出库表!B:H,7,0) -> 
B164: =VLOOKUP(A164,商品信息!A:E,2,0) ->  | C164: =VLOOKUP(A164,商品信息!A:E,3,0) ->  | F164: =VLOOKUP(A164,入库表!B:H,5,0) ->  | G164: =VLOOKUP(A164,入库表!B:H,7,0) ->  | I164: =VLOOKUP(A164,出库表!B:H,5,0) ->  | J164: =VLOOKUP(A164,出库表!B:H,7,0) -> 
B165: =VLOOKUP(A165,商品信息!A:E,2,0) ->  | C165: =VLOOKUP(A165,商品信息!A:E,3,0) ->  | F165: =VLOOKUP(A165,入库表!B:H,5,0) ->  | G165: =VLOOKUP(A165,入库表!B:H,7,0) ->  | I165: =VLOOKUP(A165,出库表!B:H,5,0) ->  | J165: =VLOOKUP(A165,出库表!B:H,7,0) -> 
B166: =VLOOKUP(A166,商品信息!A:E,2,0) ->  | C166: =VLOOKUP(A166,商品信息!A:E,3,0) ->  | F166: =VLOOKUP(A166,入库表!B:H,5,0) ->  | G166: =VLOOKUP(A166,入库表!B:H,7,0) ->  | I166: =VLOOKUP(A166,出库表!B:H,5,0) ->  | J166: =VLOOKUP(A166,出库表!B:H,7,0) -> 
B167: =VLOOKUP(A167,商品信息!A:E,2,0) ->  | C167: =VLOOKUP(A167,商品信息!A:E,3,0) ->  | F167: =VLOOKUP(A167,入库表!B:H,5,0) ->  | G167: =VLOOKUP(A167,入库表!B:H,7,0) ->  | I167: =VLOOKUP(A167,出库表!B:H,5,0) ->  | J167: =VLOOKUP(A167,出库表!B:H,7,0) -> 
B168: =VLOOKUP(A168,商品信息!A:E,2,0) ->  | C168: =VLOOKUP(A168,商品信息!A:E,3,0) ->  | F168: =VLOOKUP(A168,入库表!B:H,5,0) ->  | G168: =VLOOKUP(A168,入库表!B:H,7,0) ->  | I168: =VLOOKUP(A168,出库表!B:H,5,0) ->  | J168: =VLOOKUP(A168,出库表!B:H,7,0) -> 
B169: =VLOOKUP(A169,商品信息!A:E,2,0) ->  | C169: =VLOOKUP(A169,商品信息!A:E,3,0) ->  | F169: =VLOOKUP(A169,入库表!B:H,5,0) ->  | G169: =VLOOKUP(A169,入库表!B:H,7,0) ->  | I169: =VLOOKUP(A169,出库表!B:H,5,0) ->  | J169: =VLOOKUP(A169,出库表!B:H,7,0) -> 
B170: =VLOOKUP(A170,商品信息!A:E,2,0) ->  | C170: =VLOOKUP(A170,商品信息!A:E,3,0) ->  | F170: =VLOOKUP(A170,入库表!B:H,5,0) ->  | G170: =VLOOKUP(A170,入库表!B:H,7,0) ->  | I170: =VLOOKUP(A170,出库表!B:H,5,0) ->  | J170: =VLOOKUP(A170,出库表!B:H,7,0) -> 
B171: =VLOOKUP(A171,商品信息!A:E,2,0) ->  | C171: =VLOOKUP(A171,商品信息!A:E,3,0) ->  | F171: =VLOOKUP(A171,入库表!B:H,5,0) ->  | G171: =VLOOKUP(A171,入库表!B:H,7,0) ->  | I171: =VLOOKUP(A171,出库表!B:H,5,0) ->  | J171: =VLOOKUP(A171,出库表!B:H,7,0) -> 
B172: =VLOOKUP(A172,商品信息!A:E,2,0) ->  | C172: =VLOOKUP(A172,商品信息!A:E,3,0) ->  | F172: =VLOOKUP(A172,入库表!B:H,5,0) ->  | G172: =VLOOKUP(A172,入库表!B:H,7,0) ->  | I172: =VLOOKUP(A172,出库表!B:H,5,0) ->  | J172: =VLOOKUP(A172,出库表!B:H,7,0) -> 
B173: =VLOOKUP(A173,商品信息!A:E,2,0) ->  | C173: =VLOOKUP(A173,商品信息!A:E,3,0) ->  | F173: =VLOOKUP(A173,入库表!B:H,5,0) ->  | G173: =VLOOKUP(A173,入库表!B:H,7,0) ->  | I173: =VLOOKUP(A173,出库表!B:H,5,0) ->  | J173: =VLOOKUP(A173,出库表!B:H,7,0) -> 
B174: =VLOOKUP(A174,商品信息!A:E,2,0) ->  | C174: =VLOOKUP(A174,商品信息!A:E,3,0) ->  | F174: =VLOOKUP(A174,入库表!B:H,5,0) ->  | G174: =VLOOKUP(A174,入库表!B:H,7,0) ->  | I174: =VLOOKUP(A174,出库表!B:H,5,0) ->  | J174: =VLOOKUP(A174,出库表!B:H,7,0) -> 
B175: =VLOOKUP(A175,商品信息!A:E,2,0) ->  | C175: =VLOOKUP(A175,商品信息!A:E,3,0) ->  | F175: =VLOOKUP(A175,入库表!B:H,5,0) ->  | G175: =VLOOKUP(A175,入库表!B:H,7,0) ->  | I175: =VLOOKUP(A175,出库表!B:H,5,0) ->  | J175: =VLOOKUP(A175,出库表!B:H,7,0) -> 
B176: =VLOOKUP(A176,商品信息!A:E,2,0) ->  | C176: =VLOOKUP(A176,商品信息!A:E,3,0) ->  | F176: =VLOOKUP(A176,入库表!B:H,5,0) ->  | G176: =VLOOKUP(A176,入库表!B:H,7,0) ->  | I176: =VLOOKUP(A176,出库表!B:H,5,0) ->  | J176: =VLOOKUP(A176,出库表!B:H,7,0) -> 
B177: =VLOOKUP(A177,商品信息!A:E,2,0) ->  | C177: =VLOOKUP(A177,商品信息!A:E,3,0) ->  | F177: =VLOOKUP(A177,入库表!B:H,5,0) ->  | G177: =VLOOKUP(A177,入库表!B:H,7,0) ->  | I177: =VLOOKUP(A177,出库表!B:H,5,0) ->  | J177: =VLOOKUP(A177,出库表!B:H,7,0) -> 
B178: =VLOOKUP(A178,商品信息!A:E,2,0) ->  | C178: =VLOOKUP(A178,商品信息!A:E,3,0) ->  | F178: =VLOOKUP(A178,入库表!B:H,5,0) ->  | G178: =VLOOKUP(A178,入库表!B:H,7,0) ->  | I178: =VLOOKUP(A178,出库表!B:H,5,0) ->  | J178: =VLOOKUP(A178,出库表!B:H,7,0) -> 
B179: =VLOOKUP(A179,商品信息!A:E,2,0) ->  | C179: =VLOOKUP(A179,商品信息!A:E,3,0) ->  | F179: =VLOOKUP(A179,入库表!B:H,5,0) ->  | G179: =VLOOKUP(A179,入库表!B:H,7,0) ->  | I179: =VLOOKUP(A179,出库表!B:H,5,0) ->  | J179: =VLOOKUP(A179,出库表!B:H,7,0) -> 
B180: =VLOOKUP(A180,商品信息!A:E,2,0) ->  | C180: =VLOOKUP(A180,商品信息!A:E,3,0) ->  | F180: =VLOOKUP(A180,入库表!B:H,5,0) ->  | G180: =VLOOKUP(A180,入库表!B:H,7,0) ->  | I180: =VLOOKUP(A180,出库表!B:H,5,0) ->  | J180: =VLOOKUP(A180,出库表!B:H,7,0) -> 
B181: =VLOOKUP(A181,商品信息!A:E,2,0) ->  | C181: =VLOOKUP(A181,商品信息!A:E,3,0) ->  | F181: =VLOOKUP(A181,入库表!B:H,5,0) ->  | G181: =VLOOKUP(A181,入库表!B:H,7,0) ->  | I181: =VLOOKUP(A181,出库表!B:H,5,0) ->  | J181: =VLOOKUP(A181,出库表!B:H,7,0) -> 
B182: =VLOOKUP(A182,商品信息!A:E,2,0) ->  | C182: =VLOOKUP(A182,商品信息!A:E,3,0) ->  | F182: =VLOOKUP(A182,入库表!B:H,5,0) ->  | G182: =VLOOKUP(A182,入库表!B:H,7,0) ->  | I182: =VLOOKUP(A182,出库表!B:H,5,0) ->  | J182: =VLOOKUP(A182,出库表!B:H,7,0) -> 
B183: =VLOOKUP(A183,商品信息!A:E,2,0) ->  | C183: =VLOOKUP(A183,商品信息!A:E,3,0) ->  | F183: =VLOOKUP(A183,入库表!B:H,5,0) ->  | G183: =VLOOKUP(A183,入库表!B:H,7,0) ->  | I183: =VLOOKUP(A183,出库表!B:H,5,0) ->  | J183: =VLOOKUP(A183,出库表!B:H,7,0) -> 
B184: =VLOOKUP(A184,商品信息!A:E,2,0) ->  | C184: =VLOOKUP(A184,商品信息!A:E,3,0) ->  | F184: =VLOOKUP(A184,入库表!B:H,5,0) ->  | G184: =VLOOKUP(A184,入库表!B:H,7,0) ->  | I184: =VLOOKUP(A184,出库表!B:H,5,0) ->  | J184: =VLOOKUP(A184,出库表!B:H,7,0) -> 
B185: =VLOOKUP(A185,商品信息!A:E,2,0) ->  | C185: =VLOOKUP(A185,商品信息!A:E,3,0) ->  | F185: =VLOOKUP(A185,入库表!B:H,5,0) ->  | G185: =VLOOKUP(A185,入库表!B:H,7,0) ->  | I185: =VLOOKUP(A185,出库表!B:H,5,0) ->  | J185: =VLOOKUP(A185,出库表!B:H,7,0) -> 
B186: =VLOOKUP(A186,商品信息!A:E,2,0) ->  | C186: =VLOOKUP(A186,商品信息!A:E,3,0) ->  | F186: =VLOOKUP(A186,入库表!B:H,5,0) ->  | G186: =VLOOKUP(A186,入库表!B:H,7,0) ->  | I186: =VLOOKUP(A186,出库表!B:H,5,0) ->  | J186: =VLOOKUP(A186,出库表!B:H,7,0) -> 
B187: =VLOOKUP(A187,商品信息!A:E,2,0) ->  | C187: =VLOOKUP(A187,商品信息!A:E,3,0) ->  | F187: =VLOOKUP(A187,入库表!B:H,5,0) ->  | G187: =VLOOKUP(A187,入库表!B:H,7,0) ->  | I187: =VLOOKUP(A187,出库表!B:H,5,0) ->  | J187: =VLOOKUP(A187,出库表!B:H,7,0) -> 
B188: =VLOOKUP(A188,商品信息!A:E,2,0) ->  | C188: =VLOOKUP(A188,商品信息!A:E,3,0) ->  | F188: =VLOOKUP(A188,入库表!B:H,5,0) ->  | G188: =VLOOKUP(A188,入库表!B:H,7,0) ->  | I188: =VLOOKUP(A188,出库表!B:H,5,0) ->  | J188: =VLOOKUP(A188,出库表!B:H,7,0) -> 
B189: =VLOOKUP(A189,商品信息!A:E,2,0) ->  | C189: =VLOOKUP(A189,商品信息!A:E,3,0) ->  | F189: =VLOOKUP(A189,入库表!B:H,5,0) ->  | G189: =VLOOKUP(A189,入库表!B:H,7,0) ->  | I189: =VLOOKUP(A189,出库表!B:H,5,0) ->  | J189: =VLOOKUP(A189,出库表!B:H,7,0) -> 
B190: =VLOOKUP(A190,商品信息!A:E,2,0) ->  | C190: =VLOOKUP(A190,商品信息!A:E,3,0) ->  | F190: =VLOOKUP(A190,入库表!B:H,5,0) ->  | G190: =VLOOKUP(A190,入库表!B:H,7,0) ->  | I190: =VLOOKUP(A190,出库表!B:H,5,0) ->  | J190: =VLOOKUP(A190,出库表!B:H,7,0) -> 
B191: =VLOOKUP(A191,商品信息!A:E,2,0) ->  | C191: =VLOOKUP(A191,商品信息!A:E,3,0) ->  | F191: =VLOOKUP(A191,入库表!B:H,5,0) ->  | G191: =VLOOKUP(A191,入库表!B:H,7,0) ->  | I191: =VLOOKUP(A191,出库表!B:H,5,0) ->  | J191: =VLOOKUP(A191,出库表!B:H,7,0) -> 
B192: =VLOOKUP(A192,商品信息!A:E,2,0) ->  | C192: =VLOOKUP(A192,商品信息!A:E,3,0) ->  | F192: =VLOOKUP(A192,入库表!B:H,5,0) ->  | G192: =VLOOKUP(A192,入库表!B:H,7,0) ->  | I192: =VLOOKUP(A192,出库表!B:H,5,0) ->  | J192: =VLOOKUP(A192,出库表!B:H,7,0) -> 
B193: =VLOOKUP(A193,商品信息!A:E,2,0) ->  | C193: =VLOOKUP(A193,商品信息!A:E,3,0) ->  | F193: =VLOOKUP(A193,入库表!B:H,5,0) ->  | G193: =VLOOKUP(A193,入库表!B:H,7,0) ->  | I193: =VLOOKUP(A193,出库表!B:H,5,0) ->  | J193: =VLOOKUP(A193,出库表!B:H,7,0) -> 
B194: =VLOOKUP(A194,商品信息!A:E,2,0) ->  | C194: =VLOOKUP(A194,商品信息!A:E,3,0) ->  | F194: =VLOOKUP(A194,入库表!B:H,5,0) ->  | G194: =VLOOKUP(A194,入库表!B:H,7,0) ->  | I194: =VLOOKUP(A194,出库表!B:H,5,0) ->  | J194: =VLOOKUP(A194,出库表!B:H,7,0) -> 
B195: =VLOOKUP(A195,商品信息!A:E,2,0) ->  | C195: =VLOOKUP(A195,商品信息!A:E,3,0) ->  | F195: =VLOOKUP(A195,入库表!B:H,5,0) ->  | G195: =VLOOKUP(A195,入库表!B:H,7,0) ->  | H195: =F195*G195 ->  | I195: =VLOOKUP(A195,出库表!B:H,5,0) ->  | J195: =VLOOKUP(A195,出库表!B:H,7,0) -> 
B196: =VLOOKUP(A196,商品信息!A:E,2,0) ->  | C196: =VLOOKUP(A196,商品信息!A:E,3,0) ->  | F196: =VLOOKUP(A196,入库表!B:H,5,0) ->  | G196: =VLOOKUP(A196,入库表!B:H,7,0) ->  | I196: =VLOOKUP(A196,出库表!B:H,5,0) ->  | J196: =VLOOKUP(A196,出库表!B:H,7,0) ->  | K196: =I196*J196 ->  | L196: =F196-I196 ->  | M196: =I196*(J196-G196) -> 
B197: =VLOOKUP(A197,商品信息!A:E,2,0) ->  | C197: =VLOOKUP(A197,商品信息!A:E,3,0) ->  | F197: =VLOOKUP(A197,入库表!B:H,5,0) ->  | G197: =VLOOKUP(A197,入库表!B:H,7,0) ->  | I197: =VLOOKUP(A197,出库表!B:H,5,0) ->  | J197: =VLOOKUP(A197,出库表!B:H,7,0) -> 
B198: =VLOOKUP(A198,商品信息!A:E,2,0) ->  | C198: =VLOOKUP(A198,商品信息!A:E,3,0) ->  | F198: =VLOOKUP(A198,入库表!B:H,5,0) ->  | G198: =VLOOKUP(A198,入库表!B:H,7,0) ->  | I198: =VLOOKUP(A198,出库表!B:H,5,0) ->  | J198: =VLOOKUP(A198,出库表!B:H,7,0) -> 
B199: =VLOOKUP(A199,商品信息!A:E,2,0) ->  | C199: =VLOOKUP(A199,商品信息!A:E,3,0) ->  | F199: =VLOOKUP(A199,入库表!B:H,5,0) ->  | G199: =VLOOKUP(A199,入库表!B:H,7,0) ->  | I199: =VLOOKUP(A199,出库表!B:H,5,0) ->  | J199: =VLOOKUP(A199,出库表!B:H,7,0) -> 
B200: =VLOOKUP(A200,商品信息!A:E,2,0) ->  | C200: =VLOOKUP(A200,商品信息!A:E,3,0) ->  | F200: =VLOOKUP(A200,入库表!B:H,5,0) ->  | G200: =VLOOKUP(A200,入库表!B:H,7,0) ->  | I200: =VLOOKUP(A200,出库表!B:H,5,0) ->  | J200: =VLOOKUP(A200,出库表!B:H,7,0) -> 

Sheet 出入库单据
A1: 入库单 | J1: 出库单
A2: 供应商 | G2: 入库日期 | J2: 客户名称 | P2: 送货日期
A3: 序号 | B3: 货品名称 | C3: 规格型号 | D3: 单位 | E3: 数量 | F3: 单价 | G3: 金额 | H3: 备注 | J3: 序号 | K3: 货品名称 | L3: 规格型号 | M3: 单位 | N3: 数量 | O3: 单价 | P3: 金额 | Q3: 备注
B4: HPMC-001 | C4: GGXH-001 | D4: 件 | E4: 10 | F4: 1625 | G4: =E4*F4 -> 16250 | K4: HPMC-001 | L4: GGXH-001 | M4: 件 | N4: 65 | O4: 25 | P4: =O4*N4 -> 1625
B5: HPMC-002 | C5: GGXH-002 | D5: 件 | E5: 100 | F5: 7104 | G5: =E5*F5 -> 710400 | K5: HPMC-002 | L5: GGXH-002 | M5: 件 | N5: 192 | O5: 37 | P5: =O5*N5 -> 7104
B6: HPMC-003 | C6: GGXH-003 | D6: 件 | E6: 599 | F6: 4860 | G6: 2911140 | K6: HPMC-003 | L6: GGXH-003 | M6: 件 | N6: 108 | O6: 45 | P6: 4860
B7: HPMC-004 | C7: GGXH-004 | D7: 件 | E7: 385 | F7: 1110 | G7: 427350 | K7: HPMC-004 | L7: GGXH-004 | M7: 件 | N7: 37 | O7: 30 | P7: 1110
B8: HPMC-005 | C8: GGXH-005 | D8: 件 | E8: 59 | F8: 6683 | G8: 394297 | K8: HPMC-005 | L8: GGXH-005 | M8: 件 | N8: 163 | O8: 41 | P8: 6683
B9: HPMC-006 | C9: GGXH-006 | D9: 件 | E9: 99 | F9: 15635 | G9: 1547865 | K9: HPMC-006 | L9: GGXH-006 | M9: 件 | N9: 295 | O9: 53 | P9: 15635
B10: HPMC-007 | C10: GGXH-007 | D10: 件 | E10: 80 | F10: 5310 | G10: 424800 | K10: HPMC-007 | L10: GGXH-007 | M10: 件 | N10: 118 | O10: 45 | P10: 5310
A13: 总计金额大写： | B13: =H13 -> 6432102 | G13: 合计： | H13: =SUM(G4:G12) -> 6432102 | J13: 总计金额大写： | K13: =Q13 -> 42327 | P13: 合计： | Q13: =SUM(P4:P12) -> 42327
A14: 审核： | E14: 签收： | J14: 审核： | N14: 收货单位签收：

Sheet 出入库存查询

Sheet 应收明细
A2: 销售日期 | B2: 货品编码 | C2: 货品名称 | D2: 规格型号 | E2: 颜 色 | F2: 数 量 | G2: 单 位 | H2: 销售单价 | I2: 金 额 | J2: 实收金额 | K2: 欠收款金额
A3: 2018-02-20 | B3: BM001 | C3: =VLOOKUP(B3,商品信息!A:E,2,0) -> HPMC-001 | D3: =VLOOKUP(B3,商品信息!A:E,3,0) -> GGXH-001 | E3: 红色 | F3: 65 | G3: 件 | H3: 25 | I3: =H3*F3 -> 1625 | J3: 100 | K3: =I3-J3 -> 1525
A4: 2018-02-21 | B4: BM002 | C4: =VLOOKUP(B4,商品信息!A:E,2,0) -> HPMC-002 | D4: =VLOOKUP(B4,商品信息!A:E,3,0) -> GGXH-002 | E4: 蓝色 | F4: 192 | G4: 件 | H4: 37 | I4: =H4*F4 -> 7104 | J4: 100 | K4: =I4-J4 -> 7004
A5: 2018-02-22 | B5: BM003 | C5: =VLOOKUP(B5,商品信息!A:E,2,0) -> HPMC-003 | D5: =VLOOKUP(B5,商品信息!A:E,3,0) -> GGXH-003 | E5: 黑色 | F5: 108 | G5: 件 | H5: 45 | I5: 4860 | J5: 100 | K5: 4760
A6: 2018-02-23 | B6: BM004 | C6: =VLOOKUP(B6,商品信息!A:E,2,0) -> HPMC-004 | D6: =VLOOKUP(B6,商品信息!A:E,3,0) -> GGXH-004 | E6: 黄色 | F6: 37 | G6: 件 | H6: 30 | I6: 1110 | J6: 100 | K6: 1010
A7: 2018-02-24 | B7: BM005 | C7: =VLOOKUP(B7,商品信息!A:E,2,0) -> HPMC-005 | D7: =VLOOKUP(B7,商品信息!A:E,3,0) -> GGXH-005 | E7: 紫色 | F7: 163 | G7: 件 | H7: 41 | I7: 6683 | J7: 100 | K7: 6583
A8: 2018-02-25 | B8: BM006 | C8: =VLOOKUP(B8,商品信息!A:E,2,0) -> HPMC-006 | D8: =VLOOKUP(B8,商品信息!A:E,3,0) -> GGXH-006 | E8: 金色 | F8: 295 | G8: 件 | H8: 53 | I8: 15635 | J8: 10000 | K8: 5635
A9: 2018-02-26 | B9: BM007 | C9: =VLOOKUP(B9,商品信息!A:E,2,0) -> HPMC-007 | D9: =VLOOKUP(B9,商品信息!A:E,3,0) -> GGXH-007 | E9: 橙色 | F9: 118 | G9: 件 | H9: 45 | I9: 5310 | J9: 1000 | K9: 4310

Sheet 应付明细
A2: 采购日期 | B2: 货品编码 | C2: 货品名称 | D2: 规格型号 | E2: 颜 色 | F2: 数 量 | G2: 单 位 | H2: 进货单价 | I2: 金 额 | J2: 实付金额 | K2: 欠款金额
A3: 2018-02-08 | B3: BM001 | C3: =VLOOKUP(B3,商品信息!A:E,2,0) -> HPMC-001 | D3: =VLOOKUP(B3,商品信息!A:E,3,0) -> GGXH-001 | E3: 红色 | F3: 192 | G3: 件 | H3: 16 | I3: =F3*H3 -> 3072 | J3: 1500 | K3: =I3-J3 -> 1572
A4: 2018-02-09 | B4: BM002 | C4: =VLOOKUP(B4,商品信息!A:E,2,0) -> HPMC-002 | D4: =VLOOKUP(B4,商品信息!A:E,3,0) -> GGXH-002 | E4: 蓝色 | F4: 265 | G4: 件 | H4: 25 | I4: =F4*H4 -> 6625 | J4: 1500 | K4: =I4-J4 -> 5125
A5: 2018-02-10 | B5: BM003 | C5: =VLOOKUP(B5,商品信息!A:E,2,0) -> HPMC-003 | D5: =VLOOKUP(B5,商品信息!A:E,3,0) -> GGXH-003 | E5: 黑色 | F5: 165 | G5: 件 | H5: 36 | I5: 5940 | J5: 1500 | K5: 4440
A6: 2018-02-11 | B6: BM004 | C6: =VLOOKUP(B6,商品信息!A:E,2,0) -> HPMC-004 | D6: =VLOOKUP(B6,商品信息!A:E,3,0) -> GGXH-004 | E6: 黄色 | F6: 98 | G6: 件 | H6: 19 | I6: 1862 | J6: 1500 | K6: 362
A7: 2018-02-12 | B7: BM005 | C7: =VLOOKUP(B7,商品信息!A:E,2,0) -> HPMC-005 | D7: =VLOOKUP(B7,商品信息!A:E,3,0) -> GGXH-005 | E7: 紫色 | F7: 209 | G7: 件 | H7: 29 | I7: 6061 | J7: 1500 | K7: 4561
A8: 2018-02-13 | B8: BM006 | C8: =VLOOKUP(B8,商品信息!A:E,2,0) -> HPMC-006 | D8: =VLOOKUP(B8,商品信息!A:E,3,0) -> GGXH-006 | E8: 红色 | F8: 350 | G8: 件 | H8: 25 | I8: 8750 | J8: 1500 | K8: 7250
A9: 2018-02-14 | B9: BM007 | C9: =VLOOKUP(B9,商品信息!A:E,2,0) -> HPMC-007 | D9: =VLOOKUP(B9,商品信息!A:E,3,0) -> GGXH-007 | E9: 橙色 | F9: 189 | G9: 件 | H9: 30 | I9: 5670 | J9: 1500 | K9: 4170

Sheet 数据统计

Sheet 单据库
A1: 出入库单据

Sheet 使用说明
A1: 使用说明
A2: 1.本表由VBA编码制作而成，用户使用本模板时需启动宏，工作簿中带有公式的单元格都已保护，如需更改可以到审阅-取消工作表保护即可，在更改工作表之前请做好备份工作，本工作簿需要用户将基础信息录入进来，为后面的工作表提供基础数据。 2.出入库表中都带有公式，填写数据后会自动进行计算,填入数据可以双击任意单元格会弹出窗口，在窗口中输入。 3.库存查询工作表中需要用户进行选择入库、出库或者库存，选完后系统会根据用户填写的日期和商品编码进行查询。 4.应收应付工作表中只需要点击按钮系统会自动分析出应收应付的明细并且呈现出来。 5.单击保存单据按钮系统会自动保存出入库的单据。 6.利润统计表会跟前面的数据自动呈现。
